{"text_format":"3","workbook":"xlsx","n_sheets":3,"sheets":["Group Stage","Knockout Stage","Group Standings "],"not_rendered":{"images":2},"read":"whole","date_system":"1900"}

{"sheet":"Group Stage","index":0,"n_rows":71,"n_cols":14,"rows_kept":71,"merged":[[6,1,6,5],[6,6,6,7],[70,1,70,5]]}
[]
[]
[]
[]
[]
[]
[null,"Follow Games on Fox Soccer World Cup",{"$nulls":4},"Select Favorite Team:"]
[]
[]
[null,"Match","Date ","Time","Group","Venue","TeamA","ScoreA","ScoreB","TeamB","Winner","Loser","Draw1","Draw2"]
[null,1,"June 11th","07:00:00","A","Johannesburg - JSC","South Africa",null,null,"Mexico",{"$f":"IF(GroupStages[[#This Row],[ScoreA]]=GroupStages[[#This Row],[ScoreB]], \"\", IF(GroupStages[[#This Row],[ScoreA]]>GroupStages[[#This Row],[ScoreB]],GroupStages[[#This Row],[TeamA]], GroupStages[[#This Row],[TeamB]]))","v":""},{"$f":"IF(GroupStages[[#This Row],[ScoreA]]=GroupStages[[#This Row],[ScoreB]], \"\", IF(GroupStages[[#This Row],[ScoreA]]<GroupStages[[#This Row],[ScoreB]],GroupStages[[#This Row],[TeamA]], GroupStages[[#This Row],[TeamB]]))","v":""},{"$f":"IF(AND(NOT(ISBLANK(GroupStages[ScoreA])),GroupStages[[#This Row],[ScoreA]]=GroupStages[[#This Row],[ScoreB]]), GroupStages[TeamA],\"\")","v":""},{"$f":"IF(AND(NOT(ISBLANK(GroupStages[ScoreA])),GroupStages[[#This Row],[ScoreA]]=GroupStages[[#This Row],[ScoreB]]), GroupStages[TeamB],\"\")","v":""}]
[null,2,"June 11th","11:30:00","A","Cape Town","Uruguay",null,null,"France",{"$f":"IF(GroupStages[[#This Row],[ScoreA]]=GroupStages[[#This Row],[ScoreB]], \"\", IF(GroupStages[[#This Row],[ScoreA]]>GroupStages[[#This Row],[ScoreB]],GroupStages[[#This Row],[TeamA]], GroupStages[[#This Row],[TeamB]]))","v":""},{"$f":"IF(GroupStages[[#This Row],[ScoreA]]=GroupStages[[#This Row],[ScoreB]], \"\", IF(GroupStages[[#This Row],[ScoreA]]<GroupStages[[#This Row],[ScoreB]],GroupStages[[#This Row],[TeamA]], GroupStages[[#This Row],[TeamB]]))","v":""},{"$f":"IF(AND(NOT(ISBLANK(GroupStages[ScoreA])),GroupStages[[#This Row],[ScoreA]]=GroupStages[[#This Row],[ScoreB]]), GroupStages[TeamA],\"\")","v":""},{"$f":"IF(AND(NOT(ISBLANK(GroupStages[ScoreA])),GroupStages[[#This Row],[ScoreA]]=GroupStages[[#This Row],[ScoreB]]), GroupStages[TeamB],\"\")","v":""}]
[null,3,"June 12th","07:00:00","B","Johannesburg - JEP","Argentina",null,null,"Nigeria",{"$f":"IF(GroupStages[[#This Row],[ScoreA]]=GroupStages[[#This Row],[ScoreB]], \"\", IF(GroupStages[[#This Row],[ScoreA]]>GroupStages[[#This Row],[ScoreB]],GroupStages[[#This Row],[TeamA]], GroupStages[[#This Row],[TeamB]]))","v":""},{"$f":"IF(GroupStages[[#This Row],[ScoreA]]=GroupStages[[#This Row],[ScoreB]], \"\", IF(GroupStages[[#This Row],[ScoreA]]<GroupStages[[#This Row],[ScoreB]],GroupStages[[#This Row],[TeamA]], GroupStages[[#This Row],[TeamB]]))","v":""},{"$f":"IF(AND(NOT(ISBLANK(GroupStages[ScoreA])),GroupStages[[#This Row],[ScoreA]]=GroupStages[[#This Row],[ScoreB]]), GroupStages[TeamA],\"\")","v":""},{"$f":"IF(AND(NOT(ISBLANK(GroupStages[ScoreA])),GroupStages[[#This Row],[ScoreA]]=GroupStages[[#This Row],[ScoreB]]), GroupStages[TeamB],\"\")","v":""}]
[null,4,"June 12th","04:30:00","B","Nelson Mandela Bay / Port Elizabeth","Korea Republic",null,null,"Greece",{"$f":"IF(GroupStages[[#This Row],[ScoreA]]=GroupStages[[#This Row],[ScoreB]], \"\", IF(GroupStages[[#This Row],[ScoreA]]>GroupStages[[#This Row],[ScoreB]],GroupStages[[#This Row],[TeamA]], GroupStages[[#This Row],[TeamB]]))","v":""},{"$f":"IF(GroupStages[[#This Row],[ScoreA]]=GroupStages[[#This Row],[ScoreB]], \"\", IF(GroupStages[[#This Row],[ScoreA]]<GroupStages[[#This Row],[ScoreB]],GroupStages[[#This Row],[TeamA]], GroupStages[[#This Row],[TeamB]]))","v":""},{"$f":"IF(AND(NOT(ISBLANK(GroupStages[ScoreA])),GroupStages[[#This Row],[ScoreA]]=GroupStages[[#This Row],[ScoreB]]), GroupStages[TeamA],\"\")","v":""},{"$f":"IF(AND(NOT(ISBLANK(GroupStages[ScoreA])),GroupStages[[#This Row],[ScoreA]]=GroupStages[[#This Row],[ScoreB]]), GroupStages[TeamB],\"\")","v":""}]
[null,5,"June 12th","11:30:00","C","Rustenburg","England",null,null,"USA",{"$f":"IF(GroupStages[[#This Row],[ScoreA]]=GroupStages[[#This Row],[ScoreB]], \"\", IF(GroupStages[[#This Row],[ScoreA]]>GroupStages[[#This Row],[ScoreB]],GroupStages[[#This Row],[TeamA]], GroupStages[[#This Row],[TeamB]]))","v":""},{"$f":"IF(GroupStages[[#This Row],[ScoreA]]=GroupStages[[#This Row],[ScoreB]], \"\", IF(GroupStages[[#This Row],[ScoreA]]<GroupStages[[#This Row],[ScoreB]],GroupStages[[#This Row],[TeamA]], GroupStages[[#This Row],[TeamB]]))","v":""},{"$f":"IF(AND(NOT(ISBLANK(GroupStages[ScoreA])),GroupStages[[#This Row],[ScoreA]]=GroupStages[[#This Row],[ScoreB]]), GroupStages[TeamA],\"\")","v":""},{"$f":"IF(AND(NOT(ISBLANK(GroupStages[ScoreA])),GroupStages[[#This Row],[ScoreA]]=GroupStages[[#This Row],[ScoreB]]), GroupStages[TeamB],\"\")","v":""}]
[null,6,"June 13th","04:30:00","C","Polokwane","Algeria",null,null,"Slovenia",{"$f":"IF(GroupStages[[#This Row],[ScoreA]]=GroupStages[[#This Row],[ScoreB]], \"\", IF(GroupStages[[#This Row],[ScoreA]]>GroupStages[[#This Row],[ScoreB]],GroupStages[[#This Row],[TeamA]], GroupStages[[#This Row],[TeamB]]))","v":""},{"$f":"IF(GroupStages[[#This Row],[ScoreA]]=GroupStages[[#This Row],[ScoreB]], \"\", IF(GroupStages[[#This Row],[ScoreA]]<GroupStages[[#This Row],[ScoreB]],GroupStages[[#This Row],[TeamA]], GroupStages[[#This Row],[TeamB]]))","v":""},{"$f":"IF(AND(NOT(ISBLANK(GroupStages[ScoreA])),GroupStages[[#This Row],[ScoreA]]=GroupStages[[#This Row],[ScoreB]]), GroupStages[TeamA],\"\")","v":""},{"$f":"IF(AND(NOT(ISBLANK(GroupStages[ScoreA])),GroupStages[[#This Row],[ScoreA]]=GroupStages[[#This Row],[ScoreB]]), GroupStages[TeamB],\"\")","v":""}]
[null,7,"June 13th","11:30:00","D","Durban","Germany",null,null,"Australia",{"$f":"IF(GroupStages[[#This Row],[ScoreA]]=GroupStages[[#This Row],[ScoreB]], \"\", IF(GroupStages[[#This Row],[ScoreA]]>GroupStages[[#This Row],[ScoreB]],GroupStages[[#This Row],[TeamA]], GroupStages[[#This Row],[TeamB]]))","v":""},{"$f":"IF(GroupStages[[#This Row],[ScoreA]]=GroupStages[[#This Row],[ScoreB]], \"\", IF(GroupStages[[#This Row],[ScoreA]]<GroupStages[[#This Row],[ScoreB]],GroupStages[[#This Row],[TeamA]], GroupStages[[#This Row],[TeamB]]))","v":""},{"$f":"IF(AND(NOT(ISBLANK(GroupStages[ScoreA])),GroupStages[[#This Row],[ScoreA]]=GroupStages[[#This Row],[ScoreB]]), GroupStages[TeamA],\"\")","v":""},{"$f":"IF(AND(NOT(ISBLANK(GroupStages[ScoreA])),GroupStages[[#This Row],[ScoreA]]=GroupStages[[#This Row],[ScoreB]]), GroupStages[TeamB],\"\")","v":""}]
[null,8,"June 13th","07:00:00","D","Tshwane/ Pretoria","Serbia",null,null,"Ghana",{"$f":"IF(GroupStages[[#This Row],[ScoreA]]=GroupStages[[#This Row],[ScoreB]], \"\", IF(GroupStages[[#This Row],[ScoreA]]>GroupStages[[#This Row],[ScoreB]],GroupStages[[#This Row],[TeamA]], GroupStages[[#This Row],[TeamB]]))","v":""},{"$f":"IF(GroupStages[[#This Row],[ScoreA]]=GroupStages[[#This Row],[ScoreB]], \"\", IF(GroupStages[[#This Row],[ScoreA]]<GroupStages[[#This Row],[ScoreB]],GroupStages[[#This Row],[TeamA]], GroupStages[[#This Row],[TeamB]]))","v":""},{"$f":"IF(AND(NOT(ISBLANK(GroupStages[ScoreA])),GroupStages[[#This Row],[ScoreA]]=GroupStages[[#This Row],[ScoreB]]), GroupStages[TeamA],\"\")","v":""},{"$f":"IF(AND(NOT(ISBLANK(GroupStages[ScoreA])),GroupStages[[#This Row],[ScoreA]]=GroupStages[[#This Row],[ScoreB]]), GroupStages[TeamB],\"\")","v":""}]
[null,9,"June 14th","04:30:00","E","Johannesburg - JSC","Netherlands",null,null,"Denmark",{"$f":"IF(GroupStages[[#This Row],[ScoreA]]=GroupStages[[#This Row],[ScoreB]], \"\", IF(GroupStages[[#This Row],[ScoreA]]>GroupStages[[#This Row],[ScoreB]],GroupStages[[#This Row],[TeamA]], GroupStages[[#This Row],[TeamB]]))","v":""},{"$f":"IF(GroupStages[[#This Row],[ScoreA]]=GroupStages[[#This Row],[ScoreB]], \"\", IF(GroupStages[[#This Row],[ScoreA]]<GroupStages[[#This Row],[ScoreB]],GroupStages[[#This Row],[TeamA]], GroupStages[[#This Row],[TeamB]]))","v":""},{"$f":"IF(AND(NOT(ISBLANK(GroupStages[ScoreA])),GroupStages[[#This Row],[ScoreA]]=GroupStages[[#This Row],[ScoreB]]), GroupStages[TeamA],\"\")","v":""},{"$f":"IF(AND(NOT(ISBLANK(GroupStages[ScoreA])),GroupStages[[#This Row],[ScoreA]]=GroupStages[[#This Row],[ScoreB]]), GroupStages[TeamB],\"\")","v":""}]
[null,10,"June 14th","07:00:00","E","Manguang / Bloemfontein","Japan",null,null,"Cameroon",{"$f":"IF(GroupStages[[#This Row],[ScoreA]]=GroupStages[[#This Row],[ScoreB]], \"\", IF(GroupStages[[#This Row],[ScoreA]]>GroupStages[[#This Row],[ScoreB]],GroupStages[[#This Row],[TeamA]], GroupStages[[#This Row],[TeamB]]))","v":""},{"$f":"IF(GroupStages[[#This Row],[ScoreA]]=GroupStages[[#This Row],[ScoreB]], \"\", IF(GroupStages[[#This Row],[ScoreA]]<GroupStages[[#This Row],[ScoreB]],GroupStages[[#This Row],[TeamA]], GroupStages[[#This Row],[TeamB]]))","v":""},{"$f":"IF(AND(NOT(ISBLANK(GroupStages[ScoreA])),GroupStages[[#This Row],[ScoreA]]=GroupStages[[#This Row],[ScoreB]]), GroupStages[TeamA],\"\")","v":""},{"$f":"IF(AND(NOT(ISBLANK(GroupStages[ScoreA])),GroupStages[[#This Row],[ScoreA]]=GroupStages[[#This Row],[ScoreB]]), GroupStages[TeamB],\"\")","v":""}]
[null,11,"June 14th","11:30:00","F","Cape Town","Italy",null,null,"Paraguay",{"$f":"IF(GroupStages[[#This Row],[ScoreA]]=GroupStages[[#This Row],[ScoreB]], \"\", IF(GroupStages[[#This Row],[ScoreA]]>GroupStages[[#This Row],[ScoreB]],GroupStages[[#This Row],[TeamA]], GroupStages[[#This Row],[TeamB]]))","v":""},{"$f":"IF(GroupStages[[#This Row],[ScoreA]]=GroupStages[[#This Row],[ScoreB]], \"\", IF(GroupStages[[#This Row],[ScoreA]]<GroupStages[[#This Row],[ScoreB]],GroupStages[[#This Row],[TeamA]], GroupStages[[#This Row],[TeamB]]))","v":""},{"$f":"IF(AND(NOT(ISBLANK(GroupStages[ScoreA])),GroupStages[[#This Row],[ScoreA]]=GroupStages[[#This Row],[ScoreB]]), GroupStages[TeamA],\"\")","v":""},{"$f":"IF(AND(NOT(ISBLANK(GroupStages[ScoreA])),GroupStages[[#This Row],[ScoreA]]=GroupStages[[#This Row],[ScoreB]]), GroupStages[TeamB],\"\")","v":""}]
[null,12,"June 15th","04:00:00","F","Rustenburg","New Zealand",null,null,"Slovakia",{"$f":"IF(GroupStages[[#This Row],[ScoreA]]=GroupStages[[#This Row],[ScoreB]], \"\", IF(GroupStages[[#This Row],[ScoreA]]>GroupStages[[#This Row],[ScoreB]],GroupStages[[#This Row],[TeamA]], GroupStages[[#This Row],[TeamB]]))","v":""},{"$f":"IF(GroupStages[[#This Row],[ScoreA]]=GroupStages[[#This Row],[ScoreB]], \"\", IF(GroupStages[[#This Row],[ScoreA]]<GroupStages[[#This Row],[ScoreB]],GroupStages[[#This Row],[TeamA]], GroupStages[[#This Row],[TeamB]]))","v":""},{"$f":"IF(AND(NOT(ISBLANK(GroupStages[ScoreA])),GroupStages[[#This Row],[ScoreA]]=GroupStages[[#This Row],[ScoreB]]), GroupStages[TeamA],\"\")","v":""},{"$f":"IF(AND(NOT(ISBLANK(GroupStages[ScoreA])),GroupStages[[#This Row],[ScoreA]]=GroupStages[[#This Row],[ScoreB]]), GroupStages[TeamB],\"\")","v":""}]
[null,13,"June 15th","07:00:00","G","Nelson Mandela Bay / Port Elizabeth","Cote d' Ivoire",null,null,"Portugal",{"$f":"IF(GroupStages[[#This Row],[ScoreA]]=GroupStages[[#This Row],[ScoreB]], \"\", IF(GroupStages[[#This Row],[ScoreA]]>GroupStages[[#This Row],[ScoreB]],GroupStages[[#This Row],[TeamA]], GroupStages[[#This Row],[TeamB]]))","v":""},{"$f":"IF(GroupStages[[#This Row],[ScoreA]]=GroupStages[[#This Row],[ScoreB]], \"\", IF(GroupStages[[#This Row],[ScoreA]]<GroupStages[[#This Row],[ScoreB]],GroupStages[[#This Row],[TeamA]], GroupStages[[#This Row],[TeamB]]))","v":""},{"$f":"IF(AND(NOT(ISBLANK(GroupStages[ScoreA])),GroupStages[[#This Row],[ScoreA]]=GroupStages[[#This Row],[ScoreB]]), GroupStages[TeamA],\"\")","v":""},{"$f":"IF(AND(NOT(ISBLANK(GroupStages[ScoreA])),GroupStages[[#This Row],[ScoreA]]=GroupStages[[#This Row],[ScoreB]]), GroupStages[TeamB],\"\")","v":""}]
[null,14,"June 15th","11:30:00","G","Johannesburg - JEP","Brazil",null,null,"Korea DPR",{"$f":"IF(GroupStages[[#This Row],[ScoreA]]=GroupStages[[#This Row],[ScoreB]], \"\", IF(GroupStages[[#This Row],[ScoreA]]>GroupStages[[#This Row],[ScoreB]],GroupStages[[#This Row],[TeamA]], GroupStages[[#This Row],[TeamB]]))","v":""},{"$f":"IF(GroupStages[[#This Row],[ScoreA]]=GroupStages[[#This Row],[ScoreB]], \"\", IF(GroupStages[[#This Row],[ScoreA]]<GroupStages[[#This Row],[ScoreB]],GroupStages[[#This Row],[TeamA]], GroupStages[[#This Row],[TeamB]]))","v":""},{"$f":"IF(AND(NOT(ISBLANK(GroupStages[ScoreA])),GroupStages[[#This Row],[ScoreA]]=GroupStages[[#This Row],[ScoreB]]), GroupStages[TeamA],\"\")","v":""},{"$f":"IF(AND(NOT(ISBLANK(GroupStages[ScoreA])),GroupStages[[#This Row],[ScoreA]]=GroupStages[[#This Row],[ScoreB]]), GroupStages[TeamB],\"\")","v":""}]
[null,17,"June 16th","11:30:00","A","Tshwane/Pretoria","South Africa",null,null,"Uruguay",{"$f":"IF(GroupStages[[#This Row],[ScoreA]]=GroupStages[[#This Row],[ScoreB]], \"\", IF(GroupStages[[#This Row],[ScoreA]]>GroupStages[[#This Row],[ScoreB]],GroupStages[[#This Row],[TeamA]], GroupStages[[#This Row],[TeamB]]))","v":""},{"$f":"IF(GroupStages[[#This Row],[ScoreA]]=GroupStages[[#This Row],[ScoreB]], \"\", IF(GroupStages[[#This Row],[ScoreA]]<GroupStages[[#This Row],[ScoreB]],GroupStages[[#This Row],[TeamA]], GroupStages[[#This Row],[TeamB]]))","v":""},{"$f":"IF(AND(NOT(ISBLANK(GroupStages[ScoreA])),GroupStages[[#This Row],[ScoreA]]=GroupStages[[#This Row],[ScoreB]]), GroupStages[TeamA],\"\")","v":""},{"$f":"IF(AND(NOT(ISBLANK(GroupStages[ScoreA])),GroupStages[[#This Row],[ScoreA]]=GroupStages[[#This Row],[ScoreB]]), GroupStages[TeamB],\"\")","v":""}]
[null,15,"June 16th","07:00:00","H","Nelson Mandela Bay / Port Elizabeth","Honduras",null,null,"Chile",{"$f":"IF(GroupStages[[#This Row],[ScoreA]]=GroupStages[[#This Row],[ScoreB]], \"\", IF(GroupStages[[#This Row],[ScoreA]]>GroupStages[[#This Row],[ScoreB]],GroupStages[[#This Row],[TeamA]], GroupStages[[#This Row],[TeamB]]))","v":""},{"$f":"IF(GroupStages[[#This Row],[ScoreA]]=GroupStages[[#This Row],[ScoreB]], \"\", IF(GroupStages[[#This Row],[ScoreA]]<GroupStages[[#This Row],[ScoreB]],GroupStages[[#This Row],[TeamA]], GroupStages[[#This Row],[TeamB]]))","v":""},{"$f":"IF(AND(NOT(ISBLANK(GroupStages[ScoreA])),GroupStages[[#This Row],[ScoreA]]=GroupStages[[#This Row],[ScoreB]]), GroupStages[TeamA],\"\")","v":""},{"$f":"IF(AND(NOT(ISBLANK(GroupStages[ScoreA])),GroupStages[[#This Row],[ScoreA]]=GroupStages[[#This Row],[ScoreB]]), GroupStages[TeamB],\"\")","v":""}]
[null,16,"June 16th","11:30:00","H","Johannesburg - JEP","Spain",null,null,"Switzerland",{"$f":"IF(GroupStages[[#This Row],[ScoreA]]=GroupStages[[#This Row],[ScoreB]], \"\", IF(GroupStages[[#This Row],[ScoreA]]>GroupStages[[#This Row],[ScoreB]],GroupStages[[#This Row],[TeamA]], GroupStages[[#This Row],[TeamB]]))","v":""},{"$f":"IF(GroupStages[[#This Row],[ScoreA]]=GroupStages[[#This Row],[ScoreB]], \"\", IF(GroupStages[[#This Row],[ScoreA]]<GroupStages[[#This Row],[ScoreB]],GroupStages[[#This Row],[TeamA]], GroupStages[[#This Row],[TeamB]]))","v":""},{"$f":"IF(AND(NOT(ISBLANK(GroupStages[ScoreA])),GroupStages[[#This Row],[ScoreA]]=GroupStages[[#This Row],[ScoreB]]), GroupStages[TeamA],\"\")","v":""},{"$f":"IF(AND(NOT(ISBLANK(GroupStages[ScoreA])),GroupStages[[#This Row],[ScoreA]]=GroupStages[[#This Row],[ScoreB]]), GroupStages[TeamB],\"\")","v":""}]
[null,18,"June 17th","11:30:00","A","Polokwane","France",null,null,"Mexico",{"$f":"IF(GroupStages[[#This Row],[ScoreA]]=GroupStages[[#This Row],[ScoreB]], \"\", IF(GroupStages[[#This Row],[ScoreA]]>GroupStages[[#This Row],[ScoreB]],GroupStages[[#This Row],[TeamA]], GroupStages[[#This Row],[TeamB]]))","v":""},{"$f":"IF(GroupStages[[#This Row],[ScoreA]]=GroupStages[[#This Row],[ScoreB]], \"\", IF(GroupStages[[#This Row],[ScoreA]]<GroupStages[[#This Row],[ScoreB]],GroupStages[[#This Row],[TeamA]], GroupStages[[#This Row],[TeamB]]))","v":""},{"$f":"IF(AND(NOT(ISBLANK(GroupStages[ScoreA])),GroupStages[[#This Row],[ScoreA]]=GroupStages[[#This Row],[ScoreB]]), GroupStages[TeamA],\"\")","v":""},{"$f":"IF(AND(NOT(ISBLANK(GroupStages[ScoreA])),GroupStages[[#This Row],[ScoreA]]=GroupStages[[#This Row],[ScoreB]]), GroupStages[TeamB],\"\")","v":""}]
[null,19,"June 17th","07:00:00","B","Manguang / Bloemfontein","Greece",null,null,"Nigeria",{"$f":"IF(GroupStages[[#This Row],[ScoreA]]=GroupStages[[#This Row],[ScoreB]], \"\", IF(GroupStages[[#This Row],[ScoreA]]>GroupStages[[#This Row],[ScoreB]],GroupStages[[#This Row],[TeamA]], GroupStages[[#This Row],[TeamB]]))","v":""},{"$f":"IF(GroupStages[[#This Row],[ScoreA]]=GroupStages[[#This Row],[ScoreB]], \"\", IF(GroupStages[[#This Row],[ScoreA]]<GroupStages[[#This Row],[ScoreB]],GroupStages[[#This Row],[TeamA]], GroupStages[[#This Row],[TeamB]]))","v":""},{"$f":"IF(AND(NOT(ISBLANK(GroupStages[ScoreA])),GroupStages[[#This Row],[ScoreA]]=GroupStages[[#This Row],[ScoreB]]), GroupStages[TeamA],\"\")","v":""},{"$f":"IF(AND(NOT(ISBLANK(GroupStages[ScoreA])),GroupStages[[#This Row],[ScoreA]]=GroupStages[[#This Row],[ScoreB]]), GroupStages[TeamB],\"\")","v":""}]
[null,20,"June 17th","04:30:00","B","Johannesburg - JSC","Argentina",null,null,"Korea Republic",{"$f":"IF(GroupStages[[#This Row],[ScoreA]]=GroupStages[[#This Row],[ScoreB]], \"\", IF(GroupStages[[#This Row],[ScoreA]]>GroupStages[[#This Row],[ScoreB]],GroupStages[[#This Row],[TeamA]], GroupStages[[#This Row],[TeamB]]))","v":""},{"$f":"IF(GroupStages[[#This Row],[ScoreA]]=GroupStages[[#This Row],[ScoreB]], \"\", IF(GroupStages[[#This Row],[ScoreA]]<GroupStages[[#This Row],[ScoreB]],GroupStages[[#This Row],[TeamA]], GroupStages[[#This Row],[TeamB]]))","v":""},{"$f":"IF(AND(NOT(ISBLANK(GroupStages[ScoreA])),GroupStages[[#This Row],[ScoreA]]=GroupStages[[#This Row],[ScoreB]]), GroupStages[TeamA],\"\")","v":""},{"$f":"IF(AND(NOT(ISBLANK(GroupStages[ScoreA])),GroupStages[[#This Row],[ScoreA]]=GroupStages[[#This Row],[ScoreB]]), GroupStages[TeamB],\"\")","v":""}]
[null,22,"June 18th","07:00:00","C","Johannesburg - JEP","Slovenia",null,null,"USA",{"$f":"IF(GroupStages[[#This Row],[ScoreA]]=GroupStages[[#This Row],[ScoreB]], \"\", IF(GroupStages[[#This Row],[ScoreA]]>GroupStages[[#This Row],[ScoreB]],GroupStages[[#This Row],[TeamA]], GroupStages[[#This Row],[TeamB]]))","v":""},{"$f":"IF(GroupStages[[#This Row],[ScoreA]]=GroupStages[[#This Row],[ScoreB]], \"\", IF(GroupStages[[#This Row],[ScoreA]]<GroupStages[[#This Row],[ScoreB]],GroupStages[[#This Row],[TeamA]], GroupStages[[#This Row],[TeamB]]))","v":""},{"$f":"IF(AND(NOT(ISBLANK(GroupStages[ScoreA])),GroupStages[[#This Row],[ScoreA]]=GroupStages[[#This Row],[ScoreB]]), GroupStages[TeamA],\"\")","v":""},{"$f":"IF(AND(NOT(ISBLANK(GroupStages[ScoreA])),GroupStages[[#This Row],[ScoreA]]=GroupStages[[#This Row],[ScoreB]]), GroupStages[TeamB],\"\")","v":""}]
[null,23,"June 18th","11:30:00","C","Cape Town","England",null,null,"Algeria",{"$f":"IF(GroupStages[[#This Row],[ScoreA]]=GroupStages[[#This Row],[ScoreB]], \"\", IF(GroupStages[[#This Row],[ScoreA]]>GroupStages[[#This Row],[ScoreB]],GroupStages[[#This Row],[TeamA]], GroupStages[[#This Row],[TeamB]]))","v":""},{"$f":"IF(GroupStages[[#This Row],[ScoreA]]=GroupStages[[#This Row],[ScoreB]], \"\", IF(GroupStages[[#This Row],[ScoreA]]<GroupStages[[#This Row],[ScoreB]],GroupStages[[#This Row],[TeamA]], GroupStages[[#This Row],[TeamB]]))","v":""},{"$f":"IF(AND(NOT(ISBLANK(GroupStages[ScoreA])),GroupStages[[#This Row],[ScoreA]]=GroupStages[[#This Row],[ScoreB]]), GroupStages[TeamA],\"\")","v":""},{"$f":"IF(AND(NOT(ISBLANK(GroupStages[ScoreA])),GroupStages[[#This Row],[ScoreA]]=GroupStages[[#This Row],[ScoreB]]), GroupStages[TeamB],\"\")","v":""}]
[null,21,"June 18th","04:30:00","D","Nelson Mandela Bay / Port Elizabeth","Germany",null,null,"Serbia",{"$f":"IF(GroupStages[[#This Row],[ScoreA]]=GroupStages[[#This Row],[ScoreB]], \"\", IF(GroupStages[[#This Row],[ScoreA]]>GroupStages[[#This Row],[ScoreB]],GroupStages[[#This Row],[TeamA]], GroupStages[[#This Row],[TeamB]]))","v":""},{"$f":"IF(GroupStages[[#This Row],[ScoreA]]=GroupStages[[#This Row],[ScoreB]], \"\", IF(GroupStages[[#This Row],[ScoreA]]<GroupStages[[#This Row],[ScoreB]],GroupStages[[#This Row],[TeamA]], GroupStages[[#This Row],[TeamB]]))","v":""},{"$f":"IF(AND(NOT(ISBLANK(GroupStages[ScoreA])),GroupStages[[#This Row],[ScoreA]]=GroupStages[[#This Row],[ScoreB]]), GroupStages[TeamA],\"\")","v":""},{"$f":"IF(AND(NOT(ISBLANK(GroupStages[ScoreA])),GroupStages[[#This Row],[ScoreA]]=GroupStages[[#This Row],[ScoreB]]), GroupStages[TeamB],\"\")","v":""}]
[null,24,"June 19th","07:00:00","D","Rustenburg","Ghana",null,null,"Australia",{"$f":"IF(GroupStages[[#This Row],[ScoreA]]=GroupStages[[#This Row],[ScoreB]], \"\", IF(GroupStages[[#This Row],[ScoreA]]>GroupStages[[#This Row],[ScoreB]],GroupStages[[#This Row],[TeamA]], GroupStages[[#This Row],[TeamB]]))","v":""},{"$f":"IF(GroupStages[[#This Row],[ScoreA]]=GroupStages[[#This Row],[ScoreB]], \"\", IF(GroupStages[[#This Row],[ScoreA]]<GroupStages[[#This Row],[ScoreB]],GroupStages[[#This Row],[TeamA]], GroupStages[[#This Row],[TeamB]]))","v":""},{"$f":"IF(AND(NOT(ISBLANK(GroupStages[ScoreA])),GroupStages[[#This Row],[ScoreA]]=GroupStages[[#This Row],[ScoreB]]), GroupStages[TeamA],\"\")","v":""},{"$f":"IF(AND(NOT(ISBLANK(GroupStages[ScoreA])),GroupStages[[#This Row],[ScoreA]]=GroupStages[[#This Row],[ScoreB]]), GroupStages[TeamB],\"\")","v":""}]
[null,25,"June 19th","04:30:00","E","Durban","Netherlands",null,null,"Japan",{"$f":"IF(GroupStages[[#This Row],[ScoreA]]=GroupStages[[#This Row],[ScoreB]], \"\", IF(GroupStages[[#This Row],[ScoreA]]>GroupStages[[#This Row],[ScoreB]],GroupStages[[#This Row],[TeamA]], GroupStages[[#This Row],[TeamB]]))","v":""},{"$f":"IF(GroupStages[[#This Row],[ScoreA]]=GroupStages[[#This Row],[ScoreB]], \"\", IF(GroupStages[[#This Row],[ScoreA]]<GroupStages[[#This Row],[ScoreB]],GroupStages[[#This Row],[TeamA]], GroupStages[[#This Row],[TeamB]]))","v":""},{"$f":"IF(AND(NOT(ISBLANK(GroupStages[ScoreA])),GroupStages[[#This Row],[ScoreA]]=GroupStages[[#This Row],[ScoreB]]), GroupStages[TeamA],\"\")","v":""},{"$f":"IF(AND(NOT(ISBLANK(GroupStages[ScoreA])),GroupStages[[#This Row],[ScoreA]]=GroupStages[[#This Row],[ScoreB]]), GroupStages[TeamB],\"\")","v":""}]
[null,26,"June 19th","11:30:00","E","Tshwane/ Pretoria","Cameroon",null,null,"Denmark",{"$f":"IF(GroupStages[[#This Row],[ScoreA]]=GroupStages[[#This Row],[ScoreB]], \"\", IF(GroupStages[[#This Row],[ScoreA]]>GroupStages[[#This Row],[ScoreB]],GroupStages[[#This Row],[TeamA]], GroupStages[[#This Row],[TeamB]]))","v":""},{"$f":"IF(GroupStages[[#This Row],[ScoreA]]=GroupStages[[#This Row],[ScoreB]], \"\", IF(GroupStages[[#This Row],[ScoreA]]<GroupStages[[#This Row],[ScoreB]],GroupStages[[#This Row],[TeamA]], GroupStages[[#This Row],[TeamB]]))","v":""},{"$f":"IF(AND(NOT(ISBLANK(GroupStages[ScoreA])),GroupStages[[#This Row],[ScoreA]]=GroupStages[[#This Row],[ScoreB]]), GroupStages[TeamA],\"\")","v":""},{"$f":"IF(AND(NOT(ISBLANK(GroupStages[ScoreA])),GroupStages[[#This Row],[ScoreA]]=GroupStages[[#This Row],[ScoreB]]), GroupStages[TeamB],\"\")","v":""}]
[null,27,"June 20th","04:30:00","F","Manguang / Bloemfontein","Slovakia",null,null,"Paraguay",{"$f":"IF(GroupStages[[#This Row],[ScoreA]]=GroupStages[[#This Row],[ScoreB]], \"\", IF(GroupStages[[#This Row],[ScoreA]]>GroupStages[[#This Row],[ScoreB]],GroupStages[[#This Row],[TeamA]], GroupStages[[#This Row],[TeamB]]))","v":""},{"$f":"IF(GroupStages[[#This Row],[ScoreA]]=GroupStages[[#This Row],[ScoreB]], \"\", IF(GroupStages[[#This Row],[ScoreA]]<GroupStages[[#This Row],[ScoreB]],GroupStages[[#This Row],[TeamA]], GroupStages[[#This Row],[TeamB]]))","v":""},{"$f":"IF(AND(NOT(ISBLANK(GroupStages[ScoreA])),GroupStages[[#This Row],[ScoreA]]=GroupStages[[#This Row],[ScoreB]]), GroupStages[TeamA],\"\")","v":""},{"$f":"IF(AND(NOT(ISBLANK(GroupStages[ScoreA])),GroupStages[[#This Row],[ScoreA]]=GroupStages[[#This Row],[ScoreB]]), GroupStages[TeamB],\"\")","v":""}]
[null,28,"June 20th","07:00:00","F","Nelspruit","Italy",null,null,"New Zealand",{"$f":"IF(GroupStages[[#This Row],[ScoreA]]=GroupStages[[#This Row],[ScoreB]], \"\", IF(GroupStages[[#This Row],[ScoreA]]>GroupStages[[#This Row],[ScoreB]],GroupStages[[#This Row],[TeamA]], GroupStages[[#This Row],[TeamB]]))","v":""},{"$f":"IF(GroupStages[[#This Row],[ScoreA]]=GroupStages[[#This Row],[ScoreB]], \"\", IF(GroupStages[[#This Row],[ScoreA]]<GroupStages[[#This Row],[ScoreB]],GroupStages[[#This Row],[TeamA]], GroupStages[[#This Row],[TeamB]]))","v":""},{"$f":"IF(AND(NOT(ISBLANK(GroupStages[ScoreA])),GroupStages[[#This Row],[ScoreA]]=GroupStages[[#This Row],[ScoreB]]), GroupStages[TeamA],\"\")","v":""},{"$f":"IF(AND(NOT(ISBLANK(GroupStages[ScoreA])),GroupStages[[#This Row],[ScoreA]]=GroupStages[[#This Row],[ScoreB]]), GroupStages[TeamB],\"\")","v":""}]
[null,29,"June 20th","11:30:00","G","Johannesburg - JSC","Brazil",null,null,"Cote d' Ivoire",{"$f":"IF(GroupStages[[#This Row],[ScoreA]]=GroupStages[[#This Row],[ScoreB]], \"\", IF(GroupStages[[#This Row],[ScoreA]]>GroupStages[[#This Row],[ScoreB]],GroupStages[[#This Row],[TeamA]], GroupStages[[#This Row],[TeamB]]))","v":""},{"$f":"IF(GroupStages[[#This Row],[ScoreA]]=GroupStages[[#This Row],[ScoreB]], \"\", IF(GroupStages[[#This Row],[ScoreA]]<GroupStages[[#This Row],[ScoreB]],GroupStages[[#This Row],[TeamA]], GroupStages[[#This Row],[TeamB]]))","v":""},{"$f":"IF(AND(NOT(ISBLANK(GroupStages[ScoreA])),GroupStages[[#This Row],[ScoreA]]=GroupStages[[#This Row],[ScoreB]]), GroupStages[TeamA],\"\")","v":""},{"$f":"IF(AND(NOT(ISBLANK(GroupStages[ScoreA])),GroupStages[[#This Row],[ScoreA]]=GroupStages[[#This Row],[ScoreB]]), GroupStages[TeamB],\"\")","v":""}]
[null,30,"June 21st","04:30:00","G","Cape Town","Portugal",null,null,"Korea DPR",{"$f":"IF(GroupStages[[#This Row],[ScoreA]]=GroupStages[[#This Row],[ScoreB]], \"\", IF(GroupStages[[#This Row],[ScoreA]]>GroupStages[[#This Row],[ScoreB]],GroupStages[[#This Row],[TeamA]], GroupStages[[#This Row],[TeamB]]))","v":""},{"$f":"IF(GroupStages[[#This Row],[ScoreA]]=GroupStages[[#This Row],[ScoreB]], \"\", IF(GroupStages[[#This Row],[ScoreA]]<GroupStages[[#This Row],[ScoreB]],GroupStages[[#This Row],[TeamA]], GroupStages[[#This Row],[TeamB]]))","v":""},{"$f":"IF(AND(NOT(ISBLANK(GroupStages[ScoreA])),GroupStages[[#This Row],[ScoreA]]=GroupStages[[#This Row],[ScoreB]]), GroupStages[TeamA],\"\")","v":""},{"$f":"IF(AND(NOT(ISBLANK(GroupStages[ScoreA])),GroupStages[[#This Row],[ScoreA]]=GroupStages[[#This Row],[ScoreB]]), GroupStages[TeamB],\"\")","v":""}]
[null,31,"June 21st","11:30:00","H","Johannesburg - JSC","Chile",null,null,"Switzerland",{"$f":"IF(GroupStages[[#This Row],[ScoreA]]=GroupStages[[#This Row],[ScoreB]], \"\", IF(GroupStages[[#This Row],[ScoreA]]>GroupStages[[#This Row],[ScoreB]],GroupStages[[#This Row],[TeamA]], GroupStages[[#This Row],[TeamB]]))","v":""},{"$f":"IF(GroupStages[[#This Row],[ScoreA]]=GroupStages[[#This Row],[ScoreB]], \"\", IF(GroupStages[[#This Row],[ScoreA]]<GroupStages[[#This Row],[ScoreB]],GroupStages[[#This Row],[TeamA]], GroupStages[[#This Row],[TeamB]]))","v":""},{"$f":"IF(AND(NOT(ISBLANK(GroupStages[ScoreA])),GroupStages[[#This Row],[ScoreA]]=GroupStages[[#This Row],[ScoreB]]), GroupStages[TeamA],\"\")","v":""},{"$f":"IF(AND(NOT(ISBLANK(GroupStages[ScoreA])),GroupStages[[#This Row],[ScoreA]]=GroupStages[[#This Row],[ScoreB]]), GroupStages[TeamB],\"\")","v":""}]
[null,32,"June 21st","04:30:00","H","Cape Town","Spain",null,null,"Honduras",{"$f":"IF(GroupStages[[#This Row],[ScoreA]]=GroupStages[[#This Row],[ScoreB]], \"\", IF(GroupStages[[#This Row],[ScoreA]]>GroupStages[[#This Row],[ScoreB]],GroupStages[[#This Row],[TeamA]], GroupStages[[#This Row],[TeamB]]))","v":""},{"$f":"IF(GroupStages[[#This Row],[ScoreA]]=GroupStages[[#This Row],[ScoreB]], \"\", IF(GroupStages[[#This Row],[ScoreA]]<GroupStages[[#This Row],[ScoreB]],GroupStages[[#This Row],[TeamA]], GroupStages[[#This Row],[TeamB]]))","v":""},{"$f":"IF(AND(NOT(ISBLANK(GroupStages[ScoreA])),GroupStages[[#This Row],[ScoreA]]=GroupStages[[#This Row],[ScoreB]]), GroupStages[TeamA],\"\")","v":""},{"$f":"IF(AND(NOT(ISBLANK(GroupStages[ScoreA])),GroupStages[[#This Row],[ScoreA]]=GroupStages[[#This Row],[ScoreB]]), GroupStages[TeamB],\"\")","v":""}]
[null,33,"June 22nd","07:00:00","A","Rustenburg","Mexico",null,null,"Uruguay",{"$f":"IF(GroupStages[[#This Row],[ScoreA]]=GroupStages[[#This Row],[ScoreB]], \"\", IF(GroupStages[[#This Row],[ScoreA]]>GroupStages[[#This Row],[ScoreB]],GroupStages[[#This Row],[TeamA]], GroupStages[[#This Row],[TeamB]]))","v":""},{"$f":"IF(GroupStages[[#This Row],[ScoreA]]=GroupStages[[#This Row],[ScoreB]], \"\", IF(GroupStages[[#This Row],[ScoreA]]<GroupStages[[#This Row],[ScoreB]],GroupStages[[#This Row],[TeamA]], GroupStages[[#This Row],[TeamB]]))","v":""},{"$f":"IF(AND(NOT(ISBLANK(GroupStages[ScoreA])),GroupStages[[#This Row],[ScoreA]]=GroupStages[[#This Row],[ScoreB]]), GroupStages[TeamA],\"\")","v":""},{"$f":"IF(AND(NOT(ISBLANK(GroupStages[ScoreA])),GroupStages[[#This Row],[ScoreA]]=GroupStages[[#This Row],[ScoreB]]), GroupStages[TeamB],\"\")","v":""}]
[null,34,"June 22nd","07:00:00","A","Manguang / Bloemfontein","France",null,null,"South Africa",{"$f":"IF(GroupStages[[#This Row],[ScoreA]]=GroupStages[[#This Row],[ScoreB]], \"\", IF(GroupStages[[#This Row],[ScoreA]]>GroupStages[[#This Row],[ScoreB]],GroupStages[[#This Row],[TeamA]], GroupStages[[#This Row],[TeamB]]))","v":""},{"$f":"IF(GroupStages[[#This Row],[ScoreA]]=GroupStages[[#This Row],[ScoreB]], \"\", IF(GroupStages[[#This Row],[ScoreA]]<GroupStages[[#This Row],[ScoreB]],GroupStages[[#This Row],[TeamA]], GroupStages[[#This Row],[TeamB]]))","v":""},{"$f":"IF(AND(NOT(ISBLANK(GroupStages[ScoreA])),GroupStages[[#This Row],[ScoreA]]=GroupStages[[#This Row],[ScoreB]]), GroupStages[TeamA],\"\")","v":""},{"$f":"IF(AND(NOT(ISBLANK(GroupStages[ScoreA])),GroupStages[[#This Row],[ScoreA]]=GroupStages[[#This Row],[ScoreB]]), GroupStages[TeamB],\"\")","v":""}]
[null,35,"June 22nd","11:30:00","B","Durban","Nigeria",null,null,"Korea Republic",{"$f":"IF(GroupStages[[#This Row],[ScoreA]]=GroupStages[[#This Row],[ScoreB]], \"\", IF(GroupStages[[#This Row],[ScoreA]]>GroupStages[[#This Row],[ScoreB]],GroupStages[[#This Row],[TeamA]], GroupStages[[#This Row],[TeamB]]))","v":""},{"$f":"IF(GroupStages[[#This Row],[ScoreA]]=GroupStages[[#This Row],[ScoreB]], \"\", IF(GroupStages[[#This Row],[ScoreA]]<GroupStages[[#This Row],[ScoreB]],GroupStages[[#This Row],[TeamA]], GroupStages[[#This Row],[TeamB]]))","v":""},{"$f":"IF(AND(NOT(ISBLANK(GroupStages[ScoreA])),GroupStages[[#This Row],[ScoreA]]=GroupStages[[#This Row],[ScoreB]]), GroupStages[TeamA],\"\")","v":""},{"$f":"IF(AND(NOT(ISBLANK(GroupStages[ScoreA])),GroupStages[[#This Row],[ScoreA]]=GroupStages[[#This Row],[ScoreB]]), GroupStages[TeamB],\"\")","v":""}]
[null,36,"June 22nd","11:30:00","B","Polokwane","Greece",null,null,"Argentina",{"$f":"IF(GroupStages[[#This Row],[ScoreA]]=GroupStages[[#This Row],[ScoreB]], \"\", IF(GroupStages[[#This Row],[ScoreA]]>GroupStages[[#This Row],[ScoreB]],GroupStages[[#This Row],[TeamA]], GroupStages[[#This Row],[TeamB]]))","v":""},{"$f":"IF(GroupStages[[#This Row],[ScoreA]]=GroupStages[[#This Row],[ScoreB]], \"\", IF(GroupStages[[#This Row],[ScoreA]]<GroupStages[[#This Row],[ScoreB]],GroupStages[[#This Row],[TeamA]], GroupStages[[#This Row],[TeamB]]))","v":""},{"$f":"IF(AND(NOT(ISBLANK(GroupStages[ScoreA])),GroupStages[[#This Row],[ScoreA]]=GroupStages[[#This Row],[ScoreB]]), GroupStages[TeamA],\"\")","v":""},{"$f":"IF(AND(NOT(ISBLANK(GroupStages[ScoreA])),GroupStages[[#This Row],[ScoreA]]=GroupStages[[#This Row],[ScoreB]]), GroupStages[TeamB],\"\")","v":""}]
[null,37,"June 23rd","07:00:00","C","Nelson Mandela Bay / Port Elizabeth","Slovenia",null,null,"England",{"$f":"IF(GroupStages[[#This Row],[ScoreA]]=GroupStages[[#This Row],[ScoreB]], \"\", IF(GroupStages[[#This Row],[ScoreA]]>GroupStages[[#This Row],[ScoreB]],GroupStages[[#This Row],[TeamA]], GroupStages[[#This Row],[TeamB]]))","v":""},{"$f":"IF(GroupStages[[#This Row],[ScoreA]]=GroupStages[[#This Row],[ScoreB]], \"\", IF(GroupStages[[#This Row],[ScoreA]]<GroupStages[[#This Row],[ScoreB]],GroupStages[[#This Row],[TeamA]], GroupStages[[#This Row],[TeamB]]))","v":""},{"$f":"IF(AND(NOT(ISBLANK(GroupStages[ScoreA])),GroupStages[[#This Row],[ScoreA]]=GroupStages[[#This Row],[ScoreB]]), GroupStages[TeamA],\"\")","v":""},{"$f":"IF(AND(NOT(ISBLANK(GroupStages[ScoreA])),GroupStages[[#This Row],[ScoreA]]=GroupStages[[#This Row],[ScoreB]]), GroupStages[TeamB],\"\")","v":""}]
[null,38,"June 23rd","07:00:00","C","Tshwane/ Pretoria","USA",null,null,"Algeria",{"$f":"IF(GroupStages[[#This Row],[ScoreA]]=GroupStages[[#This Row],[ScoreB]], \"\", IF(GroupStages[[#This Row],[ScoreA]]>GroupStages[[#This Row],[ScoreB]],GroupStages[[#This Row],[TeamA]], GroupStages[[#This Row],[TeamB]]))","v":""},{"$f":"IF(GroupStages[[#This Row],[ScoreA]]=GroupStages[[#This Row],[ScoreB]], \"\", IF(GroupStages[[#This Row],[ScoreA]]<GroupStages[[#This Row],[ScoreB]],GroupStages[[#This Row],[TeamA]], GroupStages[[#This Row],[TeamB]]))","v":""},{"$f":"IF(AND(NOT(ISBLANK(GroupStages[ScoreA])),GroupStages[[#This Row],[ScoreA]]=GroupStages[[#This Row],[ScoreB]]), GroupStages[TeamA],\"\")","v":""},{"$f":"IF(AND(NOT(ISBLANK(GroupStages[ScoreA])),GroupStages[[#This Row],[ScoreA]]=GroupStages[[#This Row],[ScoreB]]), GroupStages[TeamB],\"\")","v":""}]
[null,39,"June 23rd","11:30:00","D","Johannesburgh - JSC","Ghana",null,null,"Germany",{"$f":"IF(GroupStages[[#This Row],[ScoreA]]=GroupStages[[#This Row],[ScoreB]], \"\", IF(GroupStages[[#This Row],[ScoreA]]>GroupStages[[#This Row],[ScoreB]],GroupStages[[#This Row],[TeamA]], GroupStages[[#This Row],[TeamB]]))","v":""},{"$f":"IF(GroupStages[[#This Row],[ScoreA]]=GroupStages[[#This Row],[ScoreB]], \"\", IF(GroupStages[[#This Row],[ScoreA]]<GroupStages[[#This Row],[ScoreB]],GroupStages[[#This Row],[TeamA]], GroupStages[[#This Row],[TeamB]]))","v":""},{"$f":"IF(AND(NOT(ISBLANK(GroupStages[ScoreA])),GroupStages[[#This Row],[ScoreA]]=GroupStages[[#This Row],[ScoreB]]), GroupStages[TeamA],\"\")","v":""},{"$f":"IF(AND(NOT(ISBLANK(GroupStages[ScoreA])),GroupStages[[#This Row],[ScoreA]]=GroupStages[[#This Row],[ScoreB]]), GroupStages[TeamB],\"\")","v":""}]
[null,40,"June 23rd","11:30:00","D","Nelspruit","Australia",null,null,"Serbia",{"$f":"IF(GroupStages[[#This Row],[ScoreA]]=GroupStages[[#This Row],[ScoreB]], \"\", IF(GroupStages[[#This Row],[ScoreA]]>GroupStages[[#This Row],[ScoreB]],GroupStages[[#This Row],[TeamA]], GroupStages[[#This Row],[TeamB]]))","v":""},{"$f":"IF(GroupStages[[#This Row],[ScoreA]]=GroupStages[[#This Row],[ScoreB]], \"\", IF(GroupStages[[#This Row],[ScoreA]]<GroupStages[[#This Row],[ScoreB]],GroupStages[[#This Row],[TeamA]], GroupStages[[#This Row],[TeamB]]))","v":""},{"$f":"IF(AND(NOT(ISBLANK(GroupStages[ScoreA])),GroupStages[[#This Row],[ScoreA]]=GroupStages[[#This Row],[ScoreB]]), GroupStages[TeamA],\"\")","v":""},{"$f":"IF(AND(NOT(ISBLANK(GroupStages[ScoreA])),GroupStages[[#This Row],[ScoreA]]=GroupStages[[#This Row],[ScoreB]]), GroupStages[TeamB],\"\")","v":""}]
[null,43,"June 24th","11:30:00","E","Rustenburg","Denmark",null,null,"Japan",{"$f":"IF(GroupStages[[#This Row],[ScoreA]]=GroupStages[[#This Row],[ScoreB]], \"\", IF(GroupStages[[#This Row],[ScoreA]]>GroupStages[[#This Row],[ScoreB]],GroupStages[[#This Row],[TeamA]], GroupStages[[#This Row],[TeamB]]))","v":""},{"$f":"IF(GroupStages[[#This Row],[ScoreA]]=GroupStages[[#This Row],[ScoreB]], \"\", IF(GroupStages[[#This Row],[ScoreA]]<GroupStages[[#This Row],[ScoreB]],GroupStages[[#This Row],[TeamA]], GroupStages[[#This Row],[TeamB]]))","v":""},{"$f":"IF(AND(NOT(ISBLANK(GroupStages[ScoreA])),GroupStages[[#This Row],[ScoreA]]=GroupStages[[#This Row],[ScoreB]]), GroupStages[TeamA],\"\")","v":""},{"$f":"IF(AND(NOT(ISBLANK(GroupStages[ScoreA])),GroupStages[[#This Row],[ScoreA]]=GroupStages[[#This Row],[ScoreB]]), GroupStages[TeamB],\"\")","v":""}]
[null,44,"June 24th","11:30:00","E","Cape Town","Cameroon",null,null,"Netherlands",{"$f":"IF(GroupStages[[#This Row],[ScoreA]]=GroupStages[[#This Row],[ScoreB]], \"\", IF(GroupStages[[#This Row],[ScoreA]]>GroupStages[[#This Row],[ScoreB]],GroupStages[[#This Row],[TeamA]], GroupStages[[#This Row],[TeamB]]))","v":""},{"$f":"IF(GroupStages[[#This Row],[ScoreA]]=GroupStages[[#This Row],[ScoreB]], \"\", IF(GroupStages[[#This Row],[ScoreA]]<GroupStages[[#This Row],[ScoreB]],GroupStages[[#This Row],[TeamA]], GroupStages[[#This Row],[TeamB]]))","v":""},{"$f":"IF(AND(NOT(ISBLANK(GroupStages[ScoreA])),GroupStages[[#This Row],[ScoreA]]=GroupStages[[#This Row],[ScoreB]]), GroupStages[TeamA],\"\")","v":""},{"$f":"IF(AND(NOT(ISBLANK(GroupStages[ScoreA])),GroupStages[[#This Row],[ScoreA]]=GroupStages[[#This Row],[ScoreB]]), GroupStages[TeamB],\"\")","v":""}]
[null,41,"June 24th","07:00:00","F","Johannesburg - JEP","Slovakia",null,null,"Italy",{"$f":"IF(GroupStages[[#This Row],[ScoreA]]=GroupStages[[#This Row],[ScoreB]], \"\", IF(GroupStages[[#This Row],[ScoreA]]>GroupStages[[#This Row],[ScoreB]],GroupStages[[#This Row],[TeamA]], GroupStages[[#This Row],[TeamB]]))","v":""},{"$f":"IF(GroupStages[[#This Row],[ScoreA]]=GroupStages[[#This Row],[ScoreB]], \"\", IF(GroupStages[[#This Row],[ScoreA]]<GroupStages[[#This Row],[ScoreB]],GroupStages[[#This Row],[TeamA]], GroupStages[[#This Row],[TeamB]]))","v":""},{"$f":"IF(AND(NOT(ISBLANK(GroupStages[ScoreA])),GroupStages[[#This Row],[ScoreA]]=GroupStages[[#This Row],[ScoreB]]), GroupStages[TeamA],\"\")","v":""},{"$f":"IF(AND(NOT(ISBLANK(GroupStages[ScoreA])),GroupStages[[#This Row],[ScoreA]]=GroupStages[[#This Row],[ScoreB]]), GroupStages[TeamB],\"\")","v":""}]
[null,42,"June 24th","07:00:00","F","Polokwane","Paraguay",null,null,"New Zealand",{"$f":"IF(GroupStages[[#This Row],[ScoreA]]=GroupStages[[#This Row],[ScoreB]], \"\", IF(GroupStages[[#This Row],[ScoreA]]>GroupStages[[#This Row],[ScoreB]],GroupStages[[#This Row],[TeamA]], GroupStages[[#This Row],[TeamB]]))","v":""},{"$f":"IF(GroupStages[[#This Row],[ScoreA]]=GroupStages[[#This Row],[ScoreB]], \"\", IF(GroupStages[[#This Row],[ScoreA]]<GroupStages[[#This Row],[ScoreB]],GroupStages[[#This Row],[TeamA]], GroupStages[[#This Row],[TeamB]]))","v":""},{"$f":"IF(AND(NOT(ISBLANK(GroupStages[ScoreA])),GroupStages[[#This Row],[ScoreA]]=GroupStages[[#This Row],[ScoreB]]), GroupStages[TeamA],\"\")","v":""},{"$f":"IF(AND(NOT(ISBLANK(GroupStages[ScoreA])),GroupStages[[#This Row],[ScoreA]]=GroupStages[[#This Row],[ScoreB]]), GroupStages[TeamB],\"\")","v":""}]
[null,45,"June 25th","07:00:00","G","Durban","Portugak",null,null,"Brazil",{"$f":"IF(GroupStages[[#This Row],[ScoreA]]=GroupStages[[#This Row],[ScoreB]], \"\", IF(GroupStages[[#This Row],[ScoreA]]>GroupStages[[#This Row],[ScoreB]],GroupStages[[#This Row],[TeamA]], GroupStages[[#This Row],[TeamB]]))","v":""},{"$f":"IF(GroupStages[[#This Row],[ScoreA]]=GroupStages[[#This Row],[ScoreB]], \"\", IF(GroupStages[[#This Row],[ScoreA]]<GroupStages[[#This Row],[ScoreB]],GroupStages[[#This Row],[TeamA]], GroupStages[[#This Row],[TeamB]]))","v":""},{"$f":"IF(AND(NOT(ISBLANK(GroupStages[ScoreA])),GroupStages[[#This Row],[ScoreA]]=GroupStages[[#This Row],[ScoreB]]), GroupStages[TeamA],\"\")","v":""},{"$f":"IF(AND(NOT(ISBLANK(GroupStages[ScoreA])),GroupStages[[#This Row],[ScoreA]]=GroupStages[[#This Row],[ScoreB]]), GroupStages[TeamB],\"\")","v":""}]
[null,46,"June 25th","07:00:00","G","Nelspruit","Korea DPR",null,null,"Cote d' Ivoire",{"$f":"IF(GroupStages[[#This Row],[ScoreA]]=GroupStages[[#This Row],[ScoreB]], \"\", IF(GroupStages[[#This Row],[ScoreA]]>GroupStages[[#This Row],[ScoreB]],GroupStages[[#This Row],[TeamA]], GroupStages[[#This Row],[TeamB]]))","v":""},{"$f":"IF(GroupStages[[#This Row],[ScoreA]]=GroupStages[[#This Row],[ScoreB]], \"\", IF(GroupStages[[#This Row],[ScoreA]]<GroupStages[[#This Row],[ScoreB]],GroupStages[[#This Row],[TeamA]], GroupStages[[#This Row],[TeamB]]))","v":""},{"$f":"IF(AND(NOT(ISBLANK(GroupStages[ScoreA])),GroupStages[[#This Row],[ScoreA]]=GroupStages[[#This Row],[ScoreB]]), GroupStages[TeamA],\"\")","v":""},{"$f":"IF(AND(NOT(ISBLANK(GroupStages[ScoreA])),GroupStages[[#This Row],[ScoreA]]=GroupStages[[#This Row],[ScoreB]]), GroupStages[TeamB],\"\")","v":""}]
[null,47,"June 25th","07:00:00","H","Durban","Chile",null,null,"Spain",{"$f":"IF(GroupStages[[#This Row],[ScoreA]]=GroupStages[[#This Row],[ScoreB]], \"\", IF(GroupStages[[#This Row],[ScoreA]]>GroupStages[[#This Row],[ScoreB]],GroupStages[[#This Row],[TeamA]], GroupStages[[#This Row],[TeamB]]))","v":""},{"$f":"IF(GroupStages[[#This Row],[ScoreA]]=GroupStages[[#This Row],[ScoreB]], \"\", IF(GroupStages[[#This Row],[ScoreA]]<GroupStages[[#This Row],[ScoreB]],GroupStages[[#This Row],[TeamA]], GroupStages[[#This Row],[TeamB]]))","v":""},{"$f":"IF(AND(NOT(ISBLANK(GroupStages[ScoreA])),GroupStages[[#This Row],[ScoreA]]=GroupStages[[#This Row],[ScoreB]]), GroupStages[TeamA],\"\")","v":""},{"$f":"IF(AND(NOT(ISBLANK(GroupStages[ScoreA])),GroupStages[[#This Row],[ScoreA]]=GroupStages[[#This Row],[ScoreB]]), GroupStages[TeamB],\"\")","v":""}]
[null,48,"June 25th","07:00:00","H","Nelspruit","Switzerland",null,null,"Honduras",{"$f":"IF(GroupStages[[#This Row],[ScoreA]]=GroupStages[[#This Row],[ScoreB]], \"\", IF(GroupStages[[#This Row],[ScoreA]]>GroupStages[[#This Row],[ScoreB]],GroupStages[[#This Row],[TeamA]], GroupStages[[#This Row],[TeamB]]))","v":""},{"$f":"IF(GroupStages[[#This Row],[ScoreA]]=GroupStages[[#This Row],[ScoreB]], \"\", IF(GroupStages[[#This Row],[ScoreA]]<GroupStages[[#This Row],[ScoreB]],GroupStages[[#This Row],[TeamA]], GroupStages[[#This Row],[TeamB]]))","v":""},{"$f":"IF(AND(NOT(ISBLANK(GroupStages[ScoreA])),GroupStages[[#This Row],[ScoreA]]=GroupStages[[#This Row],[ScoreB]]), GroupStages[TeamA],\"\")","v":""},{"$f":"IF(AND(NOT(ISBLANK(GroupStages[ScoreA])),GroupStages[[#This Row],[ScoreA]]=GroupStages[[#This Row],[ScoreB]]), GroupStages[TeamB],\"\")","v":""}]
{"$rows_empty":12}
[null,"To learn how to create this template visit the Excel® blog"]

{"sheet":"Knockout Stage","index":1,"n_rows":57,"n_cols":10,"rows_kept":57}
[]
[null,"Round of 16",null,"Quarter-finals","Semi-Finals","Final","Semi-Finals","Quarter-Finals",null,"Round of 16"]
[]
[null,{"$f":"G26","v":"1A"},{"$nulls":7},{"$f":"G29","v":"1B"}]
[{"$nulls":3},{"$f":"G38","v":"W49"},{"$nulls":3},{"$f":"G39","v":"W52"}]
[null,{"$f":"J26","v":"2B"},{"$nulls":7},{"$f":"J29","v":"2A"}]
[{"$nulls":4},{"$f":"G44","v":"W58"},null,{"$f":"G45","v":"W59"}]
[null,{"$f":"G27","v":"1C"},{"$nulls":7},{"$f":"G28","v":"1D"}]
[{"$nulls":3},{"$f":"J38","v":"W50"},{"$nulls":3},{"$f":"J39","v":"W51"}]
[null,{"$f":"J27","v":"2D"},{"$nulls":3},{"$f":"G53","v":"W61"},{"$nulls":3},{"$f":"J28","v":"2C"}]
[]
[{"$nulls":5},{"$f":"F57","v":"World Cup Champion"}]
[]
[null,{"$f":"G30","v":"1E"},{"$nulls":3},{"$f":"J53","v":"W62"},{"$nulls":3},{"$f":"G32","v":"1F"}]
[{"$nulls":3},{"$f":"G37","v":"W53"},{"$nulls":3},{"$f":"G40","v":"W55"}]
[null,{"$f":"J30","v":"2F"},{"$nulls":7},{"$f":"J32","v":"2E"}]
[{"$nulls":4},{"$f":"J44","v":"W57"},null,{"$f":"J45","v":"W60"}]
[null,{"$f":"G31","v":"1G"},{"$nulls":7},{"$f":"G33","v":"1H"}]
[{"$nulls":3},{"$f":"J37","v":"W54"},{"$nulls":3},{"$f":"J40","v":"W56"}]
[null,{"$f":"J31","v":"2H"},{"$nulls":7},{"$f":"J33","v":"2G"}]
[]
[]
[]
[null,"Round 16"]
[null,null,"Match","Date ","Time","Venue","TeamA","ScoreA","ScoreB","TeamB"]
[null,null,49,"June 26th","07:00:00","Nelson Mandela Bay / Port Elizabeth",{"$f":"IFERROR(VLOOKUP(1,GroupA[#All],2,FALSE),\"1A\")","v":"1A"},null,null,{"$f":"IFERROR(VLOOKUP(2,GroupB[#All],2,FALSE),\"2B\")","v":"2B"}]
[null,null,50,"June 26th","11:30:00","Rustenburg",{"$f":"IFERROR(VLOOKUP(1,GroupC[#All],2,FALSE),\"1C\")","v":"1C"},null,null,{"$f":"IFERROR(VLOOKUP(2,GroupD[#All],2,FALSE),\"2D\")","v":"2D"}]
[null,null,51,"June 27th","07:00:00","Manguang / Bloemfontein",{"$f":"IFERROR(VLOOKUP(1,GroupD[#All],2,FALSE),\"1D\")","v":"1D"},null,null,{"$f":"IFERROR(VLOOKUP(2,GroupC[#All],2,FALSE),\"2C\")","v":"2C"}]
[null,null,52,"June 27th","11:30:00","Johannesburg",{"$f":"IFERROR(VLOOKUP(1,GroupB[#All],2,FALSE),\"1B\")","v":"1B"},null,null,{"$f":"IFERROR(VLOOKUP(2,GroupA[#All],2,FALSE),\"2A\")","v":"2A"}]
[null,null,53,"June 28th","07:00:00","Durban",{"$f":"IFERROR(VLOOKUP(1,GroupE[#All],2,FALSE),\"1E\")","v":"1E"},null,null,{"$f":"IFERROR(VLOOKUP(2,GroupF[#All],2,FALSE),\"2F\")","v":"2F"}]
[null,null,54,"June 28th","11:30:00","Johannesburg",{"$f":"IFERROR(VLOOKUP(1,GroupG[#All],2,FALSE),\"1G\")","v":"1G"},null,null,{"$f":"IFERROR(VLOOKUP(2,GroupH[#All],2,FALSE),\"2H\")","v":"2H"}]
[null,null,55,"June 29th","07:00:00","Tshwane/ Pretoria",{"$f":"IFERROR(VLOOKUP(1,GroupF[#All],2,FALSE),\"1F\")","v":"1F"},null,null,{"$f":"IFERROR(VLOOKUP(2,GroupE[#All],2,FALSE),\"2E\")","v":"2E"}]
[null,null,56,"June 29th","11:30:00","Cape Town",{"$f":"IFERROR(VLOOKUP(1,GroupH[#All],2,FALSE),\"1H\")","v":"1H"},null,null,{"$f":"IFERROR(VLOOKUP(2,GroupG[#All],2,FALSE),\"2G\")","v":"2G"}]
[]
[null,"Quarter Final"]
[null,null,"Match","Date ","Time","Venue","TeamA","ScoreA","ScoreB","TeamB"]
[null,null,57,"July 2nd","07:00:00","Nelson Mandela Bay / Port Elizabeth",{"$f":"IF(H30>I30,G30,IF(I30>H30,J30,\"W53\"))","v":"W53"},null,null,{"$f":"IF(H31>I31,G31,IF(I31>H31,J31,\"W54\"))","v":"W54"}]
[null,null,58,"July 2nd","11:30:00","Johannesburg",{"$f":"IF(H26>I26,G26,IF(I26>H26,J26,\"W49\"))","v":"W49"},null,null,{"$f":"IF(H27>I27,G27,IF(I27>H27,J27,\"W50\"))","v":"W50"}]
[null,null,59,"July 3rd","07:00:00","Cape Town",{"$f":"IF(H29>I29,G29,IF(I29>H29,J29,\"W52\"))","v":"W52"},null,null,{"$f":"IF(H28>I28,G28,IF(I28>H28,J28,\"W51\"))","v":"W51"}]
[null,null,60,"July 3rd","11:30:00","Johannesburg",{"$f":"IF(H32>I32,G32,IF(I32>H32,J32,\"W55\"))","v":"W55"},null,null,{"$f":"IF(H33>I33,G33,IF(I33>H33,J33,\"W56\"))","v":"W56"}]
[]
[null,"Semi Finals"]
[null,null,"Match","Date ","Time","Venue","TeamA","ScoreA","ScoreB","TeamB"]
[null,null,61,"July 6th","11:30:00","Cape Town",{"$f":"IF(H38>I38,G38,IF(I38>H38,J38,\"W58\"))","v":"W58"},null,null,{"$f":"IF(H37>I37,G37,IF(I37>H37,J37,\"W57\"))","v":"W57"}]
[null,null,62,"July 7th","11:30:00","Durban",{"$f":"IF(H39>I39,G39,IF(I39>H39,J39,\"W59\"))","v":"W59"},null,null,{"$f":"IF(H40>I40,G40,IF(I40>H40,J40,\"W60\"))","v":"W60"}]
[]
[null,"3rd Place"]
[null,null,"Match","Date ","Time","Venue","TeamA","ScoreA","ScoreB","TeamB"]
[null,null,63,"July 10th","11:30:00","Nelson Mandela Bay / Port Elizabeth",{"$f":"IF(H44>I44,J44,IF(I44>H44,G44,\"L61\"))","v":"L61"},null,null,{"$f":"IF(H45>I45,J45,IF(I45>H45,G45,\"L62\"))","v":"L62"}]
[]
[null,"Final"]
[null,null,"Match","Date ","Time","Venue","TeamA","ScoreA","ScoreB","TeamB"]
[null,null,64,"July 11th","11:30:00","Johannesburg",{"$f":"IF(H44>I44,G44,IF(I44>H44,J44,\"W61\"))","v":"W61"},null,null,{"$f":"IF(H45>I45,G45,IF(I45>H45,J45,\"W62\"))","v":"W62"}]
[]
[]
[]
[null,null,"Champion",null,null,{"$f":"IF(H53>I53,G53,IF(I53>H53,J53:J53,\"World Cup Champion\"))","v":"World Cup Champion"}]

{"sheet":"Group Standings ","index":2,"n_rows":58,"n_cols":12,"rows_kept":58}
[]
[]
[]
[null,"Group A"]
[null,null,"Rank","Country","W","D","L","GF","GA","GD","Pts","Tie Breaker"]
[null,null,{"$f":"IF(AND(IF(GroupA[[#This Row],[GD]]=0,TRUE,FALSE),IF(GroupA[[#This Row],[Pts]]=0,TRUE,FALSE)),99,RANK(GroupA[[#This Row],[Tie Breaker]],GroupA[Tie Breaker]))","v":99},"France",{"$f":"COUNTIF(GroupStages[Winner],GroupA[[#This Row],[Country]])","v":0},{"$f":"COUNTIF(GroupStages[Draw1],GroupA[[#This Row],[Country]])+COUNTIF(GroupStages[Draw2],GroupA[[#This Row],[Country]])","v":0},{"$f":"COUNTIF(GroupStages[Loser],GroupA[[#This Row],[Country]])","v":0},{"$f":"SUMIF(GroupStages[TeamA],GroupA[[#This Row],[Country]],GroupStages[ScoreA])+SUMIF(GroupStages[TeamB],GroupA[[#This Row],[Country]],GroupStages[ScoreB])","v":0},{"$f":"SUMIF(GroupStages[TeamA],GroupA[[#This Row],[Country]],GroupStages[ScoreB])+SUMIF(GroupStages[TeamB],GroupA[[#This Row],[Country]],GroupStages[ScoreA])","v":0},{"$f":"GroupA[[#This Row],[GF]]-GroupA[[#This Row],[GA]]","v":0},{"$f":"(GroupA[[#This Row],[W]]*3)+GroupA[[#This Row],[D]]","v":0},{"$f":"GroupA[[#This Row],[Pts]]+(GroupA[[#This Row],[GD]]/100)","v":0}]
[null,null,{"$f":"IF(AND(IF(GroupA[[#This Row],[GD]]=0,TRUE,FALSE),IF(GroupA[[#This Row],[Pts]]=0,TRUE,FALSE)),99,RANK(GroupA[[#This Row],[Tie Breaker]],GroupA[Tie Breaker]))","v":99},"South Africa",{"$f":"COUNTIF(GroupStages[Winner],GroupA[[#This Row],[Country]])","v":0},{"$f":"COUNTIF(GroupStages[Draw1],GroupA[[#This Row],[Country]])+COUNTIF(GroupStages[Draw2],GroupA[[#This Row],[Country]])","v":0},{"$f":"COUNTIF(GroupStages[Loser],GroupA[[#This Row],[Country]])","v":0},{"$f":"SUMIF(GroupStages[TeamA],GroupA[[#This Row],[Country]],GroupStages[ScoreA])+SUMIF(GroupStages[TeamB],GroupA[[#This Row],[Country]],GroupStages[ScoreB])","v":0},{"$f":"SUMIF(GroupStages[TeamA],GroupA[[#This Row],[Country]],GroupStages[ScoreB])+SUMIF(GroupStages[TeamB],GroupA[[#This Row],[Country]],GroupStages[ScoreA])","v":0},{"$f":"GroupA[[#This Row],[GF]]-GroupA[[#This Row],[GA]]","v":0},{"$f":"(GroupA[[#This Row],[W]]*3)+GroupA[[#This Row],[D]]","v":0},{"$f":"GroupA[[#This Row],[Pts]]+(GroupA[[#This Row],[GD]]/100)","v":0}]
[null,null,{"$f":"IF(AND(IF(GroupA[[#This Row],[GD]]=0,TRUE,FALSE),IF(GroupA[[#This Row],[Pts]]=0,TRUE,FALSE)),99,RANK(GroupA[[#This Row],[Tie Breaker]],GroupA[Tie Breaker]))","v":99},"Uruguay",{"$f":"COUNTIF(GroupStages[Winner],GroupA[[#This Row],[Country]])","v":0},{"$f":"COUNTIF(GroupStages[Draw1],GroupA[[#This Row],[Country]])+COUNTIF(GroupStages[Draw2],GroupA[[#This Row],[Country]])","v":0},{"$f":"COUNTIF(GroupStages[Loser],GroupA[[#This Row],[Country]])","v":0},{"$f":"SUMIF(GroupStages[TeamA],GroupA[[#This Row],[Country]],GroupStages[ScoreA])+SUMIF(GroupStages[TeamB],GroupA[[#This Row],[Country]],GroupStages[ScoreB])","v":0},{"$f":"SUMIF(GroupStages[TeamA],GroupA[[#This Row],[Country]],GroupStages[ScoreB])+SUMIF(GroupStages[TeamB],GroupA[[#This Row],[Country]],GroupStages[ScoreA])","v":0},{"$f":"GroupA[[#This Row],[GF]]-GroupA[[#This Row],[GA]]","v":0},{"$f":"(GroupA[[#This Row],[W]]*3)+GroupA[[#This Row],[D]]","v":0},{"$f":"GroupA[[#This Row],[Pts]]+(GroupA[[#This Row],[GD]]/100)","v":0}]
[null,null,{"$f":"IF(AND(IF(GroupA[[#This Row],[GD]]=0,TRUE,FALSE),IF(GroupA[[#This Row],[Pts]]=0,TRUE,FALSE)),99,RANK(GroupA[[#This Row],[Tie Breaker]],GroupA[Tie Breaker]))","v":99},"Mexico",{"$f":"COUNTIF(GroupStages[Winner],GroupA[[#This Row],[Country]])","v":0},{"$f":"COUNTIF(GroupStages[Draw1],GroupA[[#This Row],[Country]])+COUNTIF(GroupStages[Draw2],GroupA[[#This Row],[Country]])","v":0},{"$f":"COUNTIF(GroupStages[Loser],GroupA[[#This Row],[Country]])","v":0},{"$f":"SUMIF(GroupStages[TeamA],GroupA[[#This Row],[Country]],GroupStages[ScoreA])+SUMIF(GroupStages[TeamB],GroupA[[#This Row],[Country]],GroupStages[ScoreB])","v":0},{"$f":"SUMIF(GroupStages[TeamA],GroupA[[#This Row],[Country]],GroupStages[ScoreB])+SUMIF(GroupStages[TeamB],GroupA[[#This Row],[Country]],GroupStages[ScoreA])","v":0},{"$f":"GroupA[[#This Row],[GF]]-GroupA[[#This Row],[GA]]","v":0},{"$f":"(GroupA[[#This Row],[W]]*3)+GroupA[[#This Row],[D]]","v":0},{"$f":"GroupA[[#This Row],[Pts]]+(GroupA[[#This Row],[GD]]/100)","v":0}]
[]
[null,"Group B"]
[null,null,"Rank","Country","W","D","L","GF","GA","GD","Pts","Tie Breaker"]
[null,null,{"$f":"IF(AND(IF(GroupB[[#This Row],[GD]]=0,TRUE,FALSE),IF(GroupB[[#This Row],[Pts]]=0,TRUE,FALSE)),99,RANK(GroupB[[#This Row],[Tie Breaker]],GroupB[Tie Breaker]))","v":99},"Argentina",{"$f":"COUNTIF(GroupStages[Winner],GroupB[[#This Row],[Country]])","v":0},{"$f":"COUNTIF(GroupStages[Draw1],GroupB[[#This Row],[Country]])+COUNTIF(GroupStages[Draw2],GroupB[[#This Row],[Country]])","v":0},{"$f":"COUNTIF(GroupStages[Loser],GroupB[[#This Row],[Country]])","v":0},{"$f":"SUMIF(GroupStages[TeamA],GroupB[[#This Row],[Country]],GroupStages[ScoreA])+SUMIF(GroupStages[TeamB],GroupB[[#This Row],[Country]],GroupStages[ScoreB])","v":0},{"$f":"SUMIF(GroupStages[TeamA],GroupB[[#This Row],[Country]],GroupStages[ScoreB])+SUMIF(GroupStages[TeamB],GroupB[[#This Row],[Country]],GroupStages[ScoreA])","v":0},{"$f":"GroupB[[#This Row],[GF]]-GroupB[[#This Row],[GA]]","v":0},{"$f":"(GroupB[[#This Row],[W]]*3)+GroupB[[#This Row],[D]]","v":0},{"$f":"GroupB[[#This Row],[Pts]]+(GroupB[[#This Row],[GD]]/100)","v":0}]
[null,null,{"$f":"IF(AND(IF(GroupB[[#This Row],[GD]]=0,TRUE,FALSE),IF(GroupB[[#This Row],[Pts]]=0,TRUE,FALSE)),99,RANK(GroupB[[#This Row],[Tie Breaker]],GroupB[Tie Breaker]))","v":99},"Nigeria",{"$f":"COUNTIF(GroupStages[Winner],GroupB[[#This Row],[Country]])","v":0},{"$f":"COUNTIF(GroupStages[Draw1],GroupB[[#This Row],[Country]])+COUNTIF(GroupStages[Draw2],GroupB[[#This Row],[Country]])","v":0},{"$f":"COUNTIF(GroupStages[Loser],GroupB[[#This Row],[Country]])","v":0},{"$f":"SUMIF(GroupStages[TeamA],GroupB[[#This Row],[Country]],GroupStages[ScoreA])+SUMIF(GroupStages[TeamB],GroupB[[#This Row],[Country]],GroupStages[ScoreB])","v":0},{"$f":"SUMIF(GroupStages[TeamA],GroupB[[#This Row],[Country]],GroupStages[ScoreB])+SUMIF(GroupStages[TeamB],GroupB[[#This Row],[Country]],GroupStages[ScoreA])","v":0},{"$f":"GroupB[[#This Row],[GF]]-GroupB[[#This Row],[GA]]","v":0},{"$f":"(GroupB[[#This Row],[W]]*3)+GroupB[[#This Row],[D]]","v":0},{"$f":"GroupB[[#This Row],[Pts]]+(GroupB[[#This Row],[GD]]/100)","v":0}]
[null,null,{"$f":"IF(AND(IF(GroupB[[#This Row],[GD]]=0,TRUE,FALSE),IF(GroupB[[#This Row],[Pts]]=0,TRUE,FALSE)),99,RANK(GroupB[[#This Row],[Tie Breaker]],GroupB[Tie Breaker]))","v":99},"Greece",{"$f":"COUNTIF(GroupStages[Winner],GroupB[[#This Row],[Country]])","v":0},{"$f":"COUNTIF(GroupStages[Draw1],GroupB[[#This Row],[Country]])+COUNTIF(GroupStages[Draw2],GroupB[[#This Row],[Country]])","v":0},{"$f":"COUNTIF(GroupStages[Loser],GroupB[[#This Row],[Country]])","v":0},{"$f":"SUMIF(GroupStages[TeamA],GroupB[[#This Row],[Country]],GroupStages[ScoreA])+SUMIF(GroupStages[TeamB],GroupB[[#This Row],[Country]],GroupStages[ScoreB])","v":0},{"$f":"SUMIF(GroupStages[TeamA],GroupB[[#This Row],[Country]],GroupStages[ScoreB])+SUMIF(GroupStages[TeamB],GroupB[[#This Row],[Country]],GroupStages[ScoreA])","v":0},{"$f":"GroupB[[#This Row],[GF]]-GroupB[[#This Row],[GA]]","v":0},{"$f":"(GroupB[[#This Row],[W]]*3)+GroupB[[#This Row],[D]]","v":0},{"$f":"GroupB[[#This Row],[Pts]]+(GroupB[[#This Row],[GD]]/100)","v":0}]
[null,null,{"$f":"IF(AND(IF(GroupB[[#This Row],[GD]]=0,TRUE,FALSE),IF(GroupB[[#This Row],[Pts]]=0,TRUE,FALSE)),99,RANK(GroupB[[#This Row],[Tie Breaker]],GroupB[Tie Breaker]))","v":99},"Korea Republic",{"$f":"COUNTIF(GroupStages[Winner],GroupB[[#This Row],[Country]])","v":0},{"$f":"COUNTIF(GroupStages[Draw1],GroupB[[#This Row],[Country]])+COUNTIF(GroupStages[Draw2],GroupB[[#This Row],[Country]])","v":0},{"$f":"COUNTIF(GroupStages[Loser],GroupB[[#This Row],[Country]])","v":0},{"$f":"SUMIF(GroupStages[TeamA],GroupB[[#This Row],[Country]],GroupStages[ScoreA])+SUMIF(GroupStages[TeamB],GroupB[[#This Row],[Country]],GroupStages[ScoreB])","v":0},{"$f":"SUMIF(GroupStages[TeamA],GroupB[[#This Row],[Country]],GroupStages[ScoreB])+SUMIF(GroupStages[TeamB],GroupB[[#This Row],[Country]],GroupStages[ScoreA])","v":0},{"$f":"GroupB[[#This Row],[GF]]-GroupB[[#This Row],[GA]]","v":0},{"$f":"(GroupB[[#This Row],[W]]*3)+GroupB[[#This Row],[D]]","v":0},{"$f":"GroupB[[#This Row],[Pts]]+(GroupB[[#This Row],[GD]]/100)","v":0}]
[]
[null,"Group C"]
[null,null,"Rank","Country","W","D","L","GF","GA","GD","Pts","Tie Breaker"]
[null,null,{"$f":"IF(AND(IF(GroupC[[#This Row],[GD]]=0,TRUE,FALSE),IF(GroupC[[#This Row],[Pts]]=0,TRUE,FALSE)),99,RANK(GroupC[[#This Row],[Tie Breaker]],GroupC[Tie Breaker]))","v":99},"England",{"$f":"COUNTIF(GroupStages[Winner],GroupC[[#This Row],[Country]])","v":0},{"$f":"COUNTIF(GroupStages[Draw1],GroupC[[#This Row],[Country]])+COUNTIF(GroupStages[Draw2],GroupC[[#This Row],[Country]])","v":0},{"$f":"COUNTIF(GroupStages[Loser],GroupC[[#This Row],[Country]])","v":0},{"$f":"SUMIF(GroupStages[TeamA],GroupC[[#This Row],[Country]],GroupStages[ScoreA])+SUMIF(GroupStages[TeamB],GroupC[[#This Row],[Country]],GroupStages[ScoreB])","v":0},{"$f":"SUMIF(GroupStages[TeamA],GroupC[[#This Row],[Country]],GroupStages[ScoreB])+SUMIF(GroupStages[TeamB],GroupC[[#This Row],[Country]],GroupStages[ScoreA])","v":0},{"$f":"GroupC[[#This Row],[GF]]-GroupC[[#This Row],[GA]]","v":0},{"$f":"(GroupC[[#This Row],[W]]*3)+GroupC[[#This Row],[D]]","v":0},{"$f":"GroupC[[#This Row],[Pts]]+(GroupC[[#This Row],[GD]]/100)","v":0}]
[null,null,{"$f":"IF(AND(IF(GroupC[[#This Row],[GD]]=0,TRUE,FALSE),IF(GroupC[[#This Row],[Pts]]=0,TRUE,FALSE)),99,RANK(GroupC[[#This Row],[Tie Breaker]],GroupC[Tie Breaker]))","v":99},"USA",{"$f":"COUNTIF(GroupStages[Winner],GroupC[[#This Row],[Country]])","v":0},{"$f":"COUNTIF(GroupStages[Draw1],GroupC[[#This Row],[Country]])+COUNTIF(GroupStages[Draw2],GroupC[[#This Row],[Country]])","v":0},{"$f":"COUNTIF(GroupStages[Loser],GroupC[[#This Row],[Country]])","v":0},{"$f":"SUMIF(GroupStages[TeamA],GroupC[[#This Row],[Country]],GroupStages[ScoreA])+SUMIF(GroupStages[TeamB],GroupC[[#This Row],[Country]],GroupStages[ScoreB])","v":0},{"$f":"SUMIF(GroupStages[TeamA],GroupC[[#This Row],[Country]],GroupStages[ScoreB])+SUMIF(GroupStages[TeamB],GroupC[[#This Row],[Country]],GroupStages[ScoreA])","v":0},{"$f":"GroupC[[#This Row],[GF]]-GroupC[[#This Row],[GA]]","v":0},{"$f":"(GroupC[[#This Row],[W]]*3)+GroupC[[#This Row],[D]]","v":0},{"$f":"GroupC[[#This Row],[Pts]]+(GroupC[[#This Row],[GD]]/100)","v":0}]
[null,null,{"$f":"IF(AND(IF(GroupC[[#This Row],[GD]]=0,TRUE,FALSE),IF(GroupC[[#This Row],[Pts]]=0,TRUE,FALSE)),99,RANK(GroupC[[#This Row],[Tie Breaker]],GroupC[Tie Breaker]))","v":99},"Algeria",{"$f":"COUNTIF(GroupStages[Winner],GroupC[[#This Row],[Country]])","v":0},{"$f":"COUNTIF(GroupStages[Draw1],GroupC[[#This Row],[Country]])+COUNTIF(GroupStages[Draw2],GroupC[[#This Row],[Country]])","v":0},{"$f":"COUNTIF(GroupStages[Loser],GroupC[[#This Row],[Country]])","v":0},{"$f":"SUMIF(GroupStages[TeamA],GroupC[[#This Row],[Country]],GroupStages[ScoreA])+SUMIF(GroupStages[TeamB],GroupC[[#This Row],[Country]],GroupStages[ScoreB])","v":0},{"$f":"SUMIF(GroupStages[TeamA],GroupC[[#This Row],[Country]],GroupStages[ScoreB])+SUMIF(GroupStages[TeamB],GroupC[[#This Row],[Country]],GroupStages[ScoreA])","v":0},{"$f":"GroupC[[#This Row],[GF]]-GroupC[[#This Row],[GA]]","v":0},{"$f":"(GroupC[[#This Row],[W]]*3)+GroupC[[#This Row],[D]]","v":0},{"$f":"GroupC[[#This Row],[Pts]]+(GroupC[[#This Row],[GD]]/100)","v":0}]
[null,null,{"$f":"IF(AND(IF(GroupC[[#This Row],[GD]]=0,TRUE,FALSE),IF(GroupC[[#This Row],[Pts]]=0,TRUE,FALSE)),99,RANK(GroupC[[#This Row],[Tie Breaker]],GroupC[Tie Breaker]))","v":99},"Slovenia",{"$f":"COUNTIF(GroupStages[Winner],GroupC[[#This Row],[Country]])","v":0},{"$f":"COUNTIF(GroupStages[Draw1],GroupC[[#This Row],[Country]])+COUNTIF(GroupStages[Draw2],GroupC[[#This Row],[Country]])","v":0},{"$f":"COUNTIF(GroupStages[Loser],GroupC[[#This Row],[Country]])","v":0},{"$f":"SUMIF(GroupStages[TeamA],GroupC[[#This Row],[Country]],GroupStages[ScoreA])+SUMIF(GroupStages[TeamB],GroupC[[#This Row],[Country]],GroupStages[ScoreB])","v":0},{"$f":"SUMIF(GroupStages[TeamA],GroupC[[#This Row],[Country]],GroupStages[ScoreB])+SUMIF(GroupStages[TeamB],GroupC[[#This Row],[Country]],GroupStages[ScoreA])","v":0},{"$f":"GroupC[[#This Row],[GF]]-GroupC[[#This Row],[GA]]","v":0},{"$f":"(GroupC[[#This Row],[W]]*3)+GroupC[[#This Row],[D]]","v":0},{"$f":"GroupC[[#This Row],[Pts]]+(GroupC[[#This Row],[GD]]/100)","v":0}]
[]
[null,"Group D"]
[null,null,"Rank","Country","W","D","L","GF","GA","GD","Pts","Tie Breaker"]
[null,null,{"$f":"IF(AND(IF(GroupD[[#This Row],[GD]]=0,TRUE,FALSE),IF(GroupD[[#This Row],[Pts]]=0,TRUE,FALSE)),99,RANK(GroupD[[#This Row],[Tie Breaker]],GroupD[Tie Breaker]))","v":99},"Germany",{"$f":"COUNTIF(GroupStages[Winner],GroupD[[#This Row],[Country]])","v":0},{"$f":"COUNTIF(GroupStages[Draw1],GroupD[[#This Row],[Country]])+COUNTIF(GroupStages[Draw2],GroupD[[#This Row],[Country]])","v":0},{"$f":"COUNTIF(GroupStages[Loser],GroupD[[#This Row],[Country]])","v":0},{"$f":"SUMIF(GroupStages[TeamA],GroupD[[#This Row],[Country]],GroupStages[ScoreA])+SUMIF(GroupStages[TeamB],GroupD[[#This Row],[Country]],GroupStages[ScoreB])","v":0},{"$f":"SUMIF(GroupStages[TeamA],GroupD[[#This Row],[Country]],GroupStages[ScoreB])+SUMIF(GroupStages[TeamB],GroupD[[#This Row],[Country]],GroupStages[ScoreA])","v":0},{"$f":"GroupD[[#This Row],[GF]]-GroupD[[#This Row],[GA]]","v":0},{"$f":"(GroupD[[#This Row],[W]]*3)+GroupD[[#This Row],[D]]","v":0},{"$f":"GroupD[[#This Row],[Pts]]+(GroupD[[#This Row],[GD]]/100)","v":0}]
[null,null,{"$f":"IF(AND(IF(GroupD[[#This Row],[GD]]=0,TRUE,FALSE),IF(GroupD[[#This Row],[Pts]]=0,TRUE,FALSE)),99,RANK(GroupD[[#This Row],[Tie Breaker]],GroupD[Tie Breaker]))","v":99},"Australia",{"$f":"COUNTIF(GroupStages[Winner],GroupD[[#This Row],[Country]])","v":0},{"$f":"COUNTIF(GroupStages[Draw1],GroupD[[#This Row],[Country]])+COUNTIF(GroupStages[Draw2],GroupD[[#This Row],[Country]])","v":0},{"$f":"COUNTIF(GroupStages[Loser],GroupD[[#This Row],[Country]])","v":0},{"$f":"SUMIF(GroupStages[TeamA],GroupD[[#This Row],[Country]],GroupStages[ScoreA])+SUMIF(GroupStages[TeamB],GroupD[[#This Row],[Country]],GroupStages[ScoreB])","v":0},{"$f":"SUMIF(GroupStages[TeamA],GroupD[[#This Row],[Country]],GroupStages[ScoreB])+SUMIF(GroupStages[TeamB],GroupD[[#This Row],[Country]],GroupStages[ScoreA])","v":0},{"$f":"GroupD[[#This Row],[GF]]-GroupD[[#This Row],[GA]]","v":0},{"$f":"(GroupD[[#This Row],[W]]*3)+GroupD[[#This Row],[D]]","v":0},{"$f":"GroupD[[#This Row],[Pts]]+(GroupD[[#This Row],[GD]]/100)","v":0}]
[null,null,{"$f":"IF(AND(IF(GroupD[[#This Row],[GD]]=0,TRUE,FALSE),IF(GroupD[[#This Row],[Pts]]=0,TRUE,FALSE)),99,RANK(GroupD[[#This Row],[Tie Breaker]],GroupD[Tie Breaker]))","v":99},"Serbia",{"$f":"COUNTIF(GroupStages[Winner],GroupD[[#This Row],[Country]])","v":0},{"$f":"COUNTIF(GroupStages[Draw1],GroupD[[#This Row],[Country]])+COUNTIF(GroupStages[Draw2],GroupD[[#This Row],[Country]])","v":0},{"$f":"COUNTIF(GroupStages[Loser],GroupD[[#This Row],[Country]])","v":0},{"$f":"SUMIF(GroupStages[TeamA],GroupD[[#This Row],[Country]],GroupStages[ScoreA])+SUMIF(GroupStages[TeamB],GroupD[[#This Row],[Country]],GroupStages[ScoreB])","v":0},{"$f":"SUMIF(GroupStages[TeamA],GroupD[[#This Row],[Country]],GroupStages[ScoreB])+SUMIF(GroupStages[TeamB],GroupD[[#This Row],[Country]],GroupStages[ScoreA])","v":0},{"$f":"GroupD[[#This Row],[GF]]-GroupD[[#This Row],[GA]]","v":0},{"$f":"(GroupD[[#This Row],[W]]*3)+GroupD[[#This Row],[D]]","v":0},{"$f":"GroupD[[#This Row],[Pts]]+(GroupD[[#This Row],[GD]]/100)","v":0}]
[null,null,{"$f":"IF(AND(IF(GroupD[[#This Row],[GD]]=0,TRUE,FALSE),IF(GroupD[[#This Row],[Pts]]=0,TRUE,FALSE)),99,RANK(GroupD[[#This Row],[Tie Breaker]],GroupD[Tie Breaker]))","v":99},"Ghana",{"$f":"COUNTIF(GroupStages[Winner],GroupD[[#This Row],[Country]])","v":0},{"$f":"COUNTIF(GroupStages[Draw1],GroupD[[#This Row],[Country]])+COUNTIF(GroupStages[Draw2],GroupD[[#This Row],[Country]])","v":0},{"$f":"COUNTIF(GroupStages[Loser],GroupD[[#This Row],[Country]])","v":0},{"$f":"SUMIF(GroupStages[TeamA],GroupD[[#This Row],[Country]],GroupStages[ScoreA])+SUMIF(GroupStages[TeamB],GroupD[[#This Row],[Country]],GroupStages[ScoreB])","v":0},{"$f":"SUMIF(GroupStages[TeamA],GroupD[[#This Row],[Country]],GroupStages[ScoreB])+SUMIF(GroupStages[TeamB],GroupD[[#This Row],[Country]],GroupStages[ScoreA])","v":0},{"$f":"GroupD[[#This Row],[GF]]-GroupD[[#This Row],[GA]]","v":0},{"$f":"(GroupD[[#This Row],[W]]*3)+GroupD[[#This Row],[D]]","v":0},{"$f":"GroupD[[#This Row],[Pts]]+(GroupD[[#This Row],[GD]]/100)","v":0}]
[]
[null,"Group E"]
[null,null,"Rank","Country","W","D","L","GF","GA","GD","Pts","Tie Breaker"]
[null,null,{"$f":"IF(AND(IF(GroupE[[#This Row],[GD]]=0,TRUE,FALSE),IF(GroupE[[#This Row],[Pts]]=0,TRUE,FALSE)),99,RANK(GroupE[[#This Row],[Tie Breaker]],GroupE[Tie Breaker]))","v":99},"Netherlands",{"$f":"COUNTIF(GroupStages[Winner],GroupE[[#This Row],[Country]])","v":0},{"$f":"COUNTIF(GroupStages[Draw1],GroupE[[#This Row],[Country]])+COUNTIF(GroupStages[Draw2],GroupE[[#This Row],[Country]])","v":0},{"$f":"COUNTIF(GroupStages[Loser],GroupE[[#This Row],[Country]])","v":0},{"$f":"SUMIF(GroupStages[TeamA],GroupE[[#This Row],[Country]],GroupStages[ScoreA])+SUMIF(GroupStages[TeamB],GroupE[[#This Row],[Country]],GroupStages[ScoreB])","v":0},{"$f":"SUMIF(GroupStages[TeamA],GroupE[[#This Row],[Country]],GroupStages[ScoreB])+SUMIF(GroupStages[TeamB],GroupE[[#This Row],[Country]],GroupStages[ScoreA])","v":0},{"$f":"GroupE[[#This Row],[GF]]-GroupE[[#This Row],[GA]]","v":0},{"$f":"(GroupE[[#This Row],[W]]*3)+GroupE[[#This Row],[D]]","v":0},{"$f":"GroupE[[#This Row],[Pts]]+(GroupE[[#This Row],[GD]]/100)","v":0}]
[null,null,{"$f":"IF(AND(IF(GroupE[[#This Row],[GD]]=0,TRUE,FALSE),IF(GroupE[[#This Row],[Pts]]=0,TRUE,FALSE)),99,RANK(GroupE[[#This Row],[Tie Breaker]],GroupE[Tie Breaker]))","v":99},"Denmark",{"$f":"COUNTIF(GroupStages[Winner],GroupE[[#This Row],[Country]])","v":0},{"$f":"COUNTIF(GroupStages[Draw1],GroupE[[#This Row],[Country]])+COUNTIF(GroupStages[Draw2],GroupE[[#This Row],[Country]])","v":0},{"$f":"COUNTIF(GroupStages[Loser],GroupE[[#This Row],[Country]])","v":0},{"$f":"SUMIF(GroupStages[TeamA],GroupE[[#This Row],[Country]],GroupStages[ScoreA])+SUMIF(GroupStages[TeamB],GroupE[[#This Row],[Country]],GroupStages[ScoreB])","v":0},{"$f":"SUMIF(GroupStages[TeamA],GroupE[[#This Row],[Country]],GroupStages[ScoreB])+SUMIF(GroupStages[TeamB],GroupE[[#This Row],[Country]],GroupStages[ScoreA])","v":0},{"$f":"GroupE[[#This Row],[GF]]-GroupE[[#This Row],[GA]]","v":0},{"$f":"(GroupE[[#This Row],[W]]*3)+GroupE[[#This Row],[D]]","v":0},{"$f":"GroupE[[#This Row],[Pts]]+(GroupE[[#This Row],[GD]]/100)","v":0}]
[null,null,{"$f":"IF(AND(IF(GroupE[[#This Row],[GD]]=0,TRUE,FALSE),IF(GroupE[[#This Row],[Pts]]=0,TRUE,FALSE)),99,RANK(GroupE[[#This Row],[Tie Breaker]],GroupE[Tie Breaker]))","v":99},"Japan",{"$f":"COUNTIF(GroupStages[Winner],GroupE[[#This Row],[Country]])","v":0},{"$f":"COUNTIF(GroupStages[Draw1],GroupE[[#This Row],[Country]])+COUNTIF(GroupStages[Draw2],GroupE[[#This Row],[Country]])","v":0},{"$f":"COUNTIF(GroupStages[Loser],GroupE[[#This Row],[Country]])","v":0},{"$f":"SUMIF(GroupStages[TeamA],GroupE[[#This Row],[Country]],GroupStages[ScoreA])+SUMIF(GroupStages[TeamB],GroupE[[#This Row],[Country]],GroupStages[ScoreB])","v":0},{"$f":"SUMIF(GroupStages[TeamA],GroupE[[#This Row],[Country]],GroupStages[ScoreB])+SUMIF(GroupStages[TeamB],GroupE[[#This Row],[Country]],GroupStages[ScoreA])","v":0},{"$f":"GroupE[[#This Row],[GF]]-GroupE[[#This Row],[GA]]","v":0},{"$f":"(GroupE[[#This Row],[W]]*3)+GroupE[[#This Row],[D]]","v":0},{"$f":"GroupE[[#This Row],[Pts]]+(GroupE[[#This Row],[GD]]/100)","v":0}]
[null,null,{"$f":"IF(AND(IF(GroupE[[#This Row],[GD]]=0,TRUE,FALSE),IF(GroupE[[#This Row],[Pts]]=0,TRUE,FALSE)),99,RANK(GroupE[[#This Row],[Tie Breaker]],GroupE[Tie Breaker]))","v":99},"Cameroon",{"$f":"COUNTIF(GroupStages[Winner],GroupE[[#This Row],[Country]])","v":0},{"$f":"COUNTIF(GroupStages[Draw1],GroupE[[#This Row],[Country]])+COUNTIF(GroupStages[Draw2],GroupE[[#This Row],[Country]])","v":0},{"$f":"COUNTIF(GroupStages[Loser],GroupE[[#This Row],[Country]])","v":0},{"$f":"SUMIF(GroupStages[TeamA],GroupE[[#This Row],[Country]],GroupStages[ScoreA])+SUMIF(GroupStages[TeamB],GroupE[[#This Row],[Country]],GroupStages[ScoreB])","v":0},{"$f":"SUMIF(GroupStages[TeamA],GroupE[[#This Row],[Country]],GroupStages[ScoreB])+SUMIF(GroupStages[TeamB],GroupE[[#This Row],[Country]],GroupStages[ScoreA])","v":0},{"$f":"GroupE[[#This Row],[GF]]-GroupE[[#This Row],[GA]]","v":0},{"$f":"(GroupE[[#This Row],[W]]*3)+GroupE[[#This Row],[D]]","v":0},{"$f":"GroupE[[#This Row],[Pts]]+(GroupE[[#This Row],[GD]]/100)","v":0}]
[]
[null,"Group F"]
[null,null,"Rank","Country","W","D","L","GF","GA","GD","Pts","Tie Breaker"]
[null,null,{"$f":"IF(AND(IF(GroupF[[#This Row],[GD]]=0,TRUE,FALSE),IF(GroupF[[#This Row],[Pts]]=0,TRUE,FALSE)),99,RANK(GroupF[[#This Row],[Tie Breaker]],GroupF[Tie Breaker]))","v":99},"Italy",{"$f":"COUNTIF(GroupStages[Winner],GroupF[[#This Row],[Country]])","v":0},{"$f":"COUNTIF(GroupStages[Draw1],GroupF[[#This Row],[Country]])+COUNTIF(GroupStages[Draw2],GroupF[[#This Row],[Country]])","v":0},{"$f":"COUNTIF(GroupStages[Loser],GroupF[[#This Row],[Country]])","v":0},{"$f":"SUMIF(GroupStages[TeamA],GroupF[[#This Row],[Country]],GroupStages[ScoreA])+SUMIF(GroupStages[TeamB],GroupF[[#This Row],[Country]],GroupStages[ScoreB])","v":0},{"$f":"SUMIF(GroupStages[TeamA],GroupF[[#This Row],[Country]],GroupStages[ScoreB])+SUMIF(GroupStages[TeamB],GroupF[[#This Row],[Country]],GroupStages[ScoreA])","v":0},{"$f":"GroupF[[#This Row],[GF]]-GroupF[[#This Row],[GA]]","v":0},{"$f":"(GroupF[[#This Row],[W]]*3)+GroupF[[#This Row],[D]]","v":0},{"$f":"GroupF[[#This Row],[Pts]]+(GroupF[[#This Row],[GD]]/100)","v":0}]
[null,null,{"$f":"IF(AND(IF(GroupF[[#This Row],[GD]]=0,TRUE,FALSE),IF(GroupF[[#This Row],[Pts]]=0,TRUE,FALSE)),99,RANK(GroupF[[#This Row],[Tie Breaker]],GroupF[Tie Breaker]))","v":99},"Paraguay",{"$f":"COUNTIF(GroupStages[Winner],GroupF[[#This Row],[Country]])","v":0},{"$f":"COUNTIF(GroupStages[Draw1],GroupF[[#This Row],[Country]])+COUNTIF(GroupStages[Draw2],GroupF[[#This Row],[Country]])","v":0},{"$f":"COUNTIF(GroupStages[Loser],GroupF[[#This Row],[Country]])","v":0},{"$f":"SUMIF(GroupStages[TeamA],GroupF[[#This Row],[Country]],GroupStages[ScoreA])+SUMIF(GroupStages[TeamB],GroupF[[#This Row],[Country]],GroupStages[ScoreB])","v":0},{"$f":"SUMIF(GroupStages[TeamA],GroupF[[#This Row],[Country]],GroupStages[ScoreB])+SUMIF(GroupStages[TeamB],GroupF[[#This Row],[Country]],GroupStages[ScoreA])","v":0},{"$f":"GroupF[[#This Row],[GF]]-GroupF[[#This Row],[GA]]","v":0},{"$f":"(GroupF[[#This Row],[W]]*3)+GroupF[[#This Row],[D]]","v":0},{"$f":"GroupF[[#This Row],[Pts]]+(GroupF[[#This Row],[GD]]/100)","v":0}]
[null,null,{"$f":"IF(AND(IF(GroupF[[#This Row],[GD]]=0,TRUE,FALSE),IF(GroupF[[#This Row],[Pts]]=0,TRUE,FALSE)),99,RANK(GroupF[[#This Row],[Tie Breaker]],GroupF[Tie Breaker]))","v":99},"New Zealand",{"$f":"COUNTIF(GroupStages[Winner],GroupF[[#This Row],[Country]])","v":0},{"$f":"COUNTIF(GroupStages[Draw1],GroupF[[#This Row],[Country]])+COUNTIF(GroupStages[Draw2],GroupF[[#This Row],[Country]])","v":0},{"$f":"COUNTIF(GroupStages[Loser],GroupF[[#This Row],[Country]])","v":0},{"$f":"SUMIF(GroupStages[TeamA],GroupF[[#This Row],[Country]],GroupStages[ScoreA])+SUMIF(GroupStages[TeamB],GroupF[[#This Row],[Country]],GroupStages[ScoreB])","v":0},{"$f":"SUMIF(GroupStages[TeamA],GroupF[[#This Row],[Country]],GroupStages[ScoreB])+SUMIF(GroupStages[TeamB],GroupF[[#This Row],[Country]],GroupStages[ScoreA])","v":0},{"$f":"GroupF[[#This Row],[GF]]-GroupF[[#This Row],[GA]]","v":0},{"$f":"(GroupF[[#This Row],[W]]*3)+GroupF[[#This Row],[D]]","v":0},{"$f":"GroupF[[#This Row],[Pts]]+(GroupF[[#This Row],[GD]]/100)","v":0}]
[null,null,{"$f":"IF(AND(IF(GroupF[[#This Row],[GD]]=0,TRUE,FALSE),IF(GroupF[[#This Row],[Pts]]=0,TRUE,FALSE)),99,RANK(GroupF[[#This Row],[Tie Breaker]],GroupF[Tie Breaker]))","v":99},"Slovakia",{"$f":"COUNTIF(GroupStages[Winner],GroupF[[#This Row],[Country]])","v":0},{"$f":"COUNTIF(GroupStages[Draw1],GroupF[[#This Row],[Country]])+COUNTIF(GroupStages[Draw2],GroupF[[#This Row],[Country]])","v":0},{"$f":"COUNTIF(GroupStages[Loser],GroupF[[#This Row],[Country]])","v":0},{"$f":"SUMIF(GroupStages[TeamA],GroupF[[#This Row],[Country]],GroupStages[ScoreA])+SUMIF(GroupStages[TeamB],GroupF[[#This Row],[Country]],GroupStages[ScoreB])","v":0},{"$f":"SUMIF(GroupStages[TeamA],GroupF[[#This Row],[Country]],GroupStages[ScoreB])+SUMIF(GroupStages[TeamB],GroupF[[#This Row],[Country]],GroupStages[ScoreA])","v":0},{"$f":"GroupF[[#This Row],[GF]]-GroupF[[#This Row],[GA]]","v":0},{"$f":"(GroupF[[#This Row],[W]]*3)+GroupF[[#This Row],[D]]","v":0},{"$f":"GroupF[[#This Row],[Pts]]+(GroupF[[#This Row],[GD]]/100)","v":0}]
[]
[null,"Group G"]
[null,null,"Rank","Country","W","D","L","GF","GA","GD","Pts","Tie Breaker"]
[null,null,{"$f":"IF(AND(IF(GroupG[[#This Row],[GD]]=0,TRUE,FALSE),IF(GroupG[[#This Row],[Pts]]=0,TRUE,FALSE)),99,RANK(GroupG[[#This Row],[Tie Breaker]],GroupG[Tie Breaker]))","v":99},"Brazil",{"$f":"COUNTIF(GroupStages[Winner],GroupG[[#This Row],[Country]])","v":0},{"$f":"COUNTIF(GroupStages[Draw1],GroupG[[#This Row],[Country]])+COUNTIF(GroupStages[Draw2],GroupG[[#This Row],[Country]])","v":0},{"$f":"COUNTIF(GroupStages[Loser],GroupG[[#This Row],[Country]])","v":0},{"$f":"SUMIF(GroupStages[TeamA],GroupG[[#This Row],[Country]],GroupStages[ScoreA])+SUMIF(GroupStages[TeamB],GroupG[[#This Row],[Country]],GroupStages[ScoreB])","v":0},{"$f":"SUMIF(GroupStages[TeamA],GroupG[[#This Row],[Country]],GroupStages[ScoreB])+SUMIF(GroupStages[TeamB],GroupG[[#This Row],[Country]],GroupStages[ScoreA])","v":0},{"$f":"GroupG[[#This Row],[GF]]-GroupG[[#This Row],[GA]]","v":0},{"$f":"(GroupG[[#This Row],[W]]*3)+GroupG[[#This Row],[D]]","v":0},{"$f":"GroupG[[#This Row],[Pts]]+(GroupG[[#This Row],[GD]]/100)","v":0}]
[null,null,{"$f":"IF(AND(IF(GroupG[[#This Row],[GD]]=0,TRUE,FALSE),IF(GroupG[[#This Row],[Pts]]=0,TRUE,FALSE)),99,RANK(GroupG[[#This Row],[Tie Breaker]],GroupG[Tie Breaker]))","v":99},"Korea DPR",{"$f":"COUNTIF(GroupStages[Winner],GroupG[[#This Row],[Country]])","v":0},{"$f":"COUNTIF(GroupStages[Draw1],GroupG[[#This Row],[Country]])+COUNTIF(GroupStages[Draw2],GroupG[[#This Row],[Country]])","v":0},{"$f":"COUNTIF(GroupStages[Loser],GroupG[[#This Row],[Country]])","v":0},{"$f":"SUMIF(GroupStages[TeamA],GroupG[[#This Row],[Country]],GroupStages[ScoreA])+SUMIF(GroupStages[TeamB],GroupG[[#This Row],[Country]],GroupStages[ScoreB])","v":0},{"$f":"SUMIF(GroupStages[TeamA],GroupG[[#This Row],[Country]],GroupStages[ScoreB])+SUMIF(GroupStages[TeamB],GroupG[[#This Row],[Country]],GroupStages[ScoreA])","v":0},{"$f":"GroupG[[#This Row],[GF]]-GroupG[[#This Row],[GA]]","v":0},{"$f":"(GroupG[[#This Row],[W]]*3)+GroupG[[#This Row],[D]]","v":0},{"$f":"GroupG[[#This Row],[Pts]]+(GroupG[[#This Row],[GD]]/100)","v":0}]
[null,null,{"$f":"IF(AND(IF(GroupG[[#This Row],[GD]]=0,TRUE,FALSE),IF(GroupG[[#This Row],[Pts]]=0,TRUE,FALSE)),99,RANK(GroupG[[#This Row],[Tie Breaker]],GroupG[Tie Breaker]))","v":99},"Cote d' Ivoire",{"$f":"COUNTIF(GroupStages[Winner],GroupG[[#This Row],[Country]])","v":0},{"$f":"COUNTIF(GroupStages[Draw1],GroupG[[#This Row],[Country]])+COUNTIF(GroupStages[Draw2],GroupG[[#This Row],[Country]])","v":0},{"$f":"COUNTIF(GroupStages[Loser],GroupG[[#This Row],[Country]])","v":0},{"$f":"SUMIF(GroupStages[TeamA],GroupG[[#This Row],[Country]],GroupStages[ScoreA])+SUMIF(GroupStages[TeamB],GroupG[[#This Row],[Country]],GroupStages[ScoreB])","v":0},{"$f":"SUMIF(GroupStages[TeamA],GroupG[[#This Row],[Country]],GroupStages[ScoreB])+SUMIF(GroupStages[TeamB],GroupG[[#This Row],[Country]],GroupStages[ScoreA])","v":0},{"$f":"GroupG[[#This Row],[GF]]-GroupG[[#This Row],[GA]]","v":0},{"$f":"(GroupG[[#This Row],[W]]*3)+GroupG[[#This Row],[D]]","v":0},{"$f":"GroupG[[#This Row],[Pts]]+(GroupG[[#This Row],[GD]]/100)","v":0}]
[null,null,{"$f":"IF(AND(IF(GroupG[[#This Row],[GD]]=0,TRUE,FALSE),IF(GroupG[[#This Row],[Pts]]=0,TRUE,FALSE)),99,RANK(GroupG[[#This Row],[Tie Breaker]],GroupG[Tie Breaker]))","v":99},"Portugal",{"$f":"COUNTIF(GroupStages[Winner],GroupG[[#This Row],[Country]])","v":0},{"$f":"COUNTIF(GroupStages[Draw1],GroupG[[#This Row],[Country]])+COUNTIF(GroupStages[Draw2],GroupG[[#This Row],[Country]])","v":0},{"$f":"COUNTIF(GroupStages[Loser],GroupG[[#This Row],[Country]])","v":0},{"$f":"SUMIF(GroupStages[TeamA],GroupG[[#This Row],[Country]],GroupStages[ScoreA])+SUMIF(GroupStages[TeamB],GroupG[[#This Row],[Country]],GroupStages[ScoreB])","v":0},{"$f":"SUMIF(GroupStages[TeamA],GroupG[[#This Row],[Country]],GroupStages[ScoreB])+SUMIF(GroupStages[TeamB],GroupG[[#This Row],[Country]],GroupStages[ScoreA])","v":0},{"$f":"GroupG[[#This Row],[GF]]-GroupG[[#This Row],[GA]]","v":0},{"$f":"(GroupG[[#This Row],[W]]*3)+GroupG[[#This Row],[D]]","v":0},{"$f":"GroupG[[#This Row],[Pts]]+(GroupG[[#This Row],[GD]]/100)","v":0}]
[]
[null,"Group H"]
[null,null,"Rank","Country","W","D","L","GF","GA","GD","Pts","Tie Breaker"]
[null,null,{"$f":"IF(AND(IF(GroupH[[#This Row],[GD]]=0,TRUE,FALSE),IF(GroupH[[#This Row],[Pts]]=0,TRUE,FALSE)),99,RANK(GroupH[[#This Row],[Tie Breaker]],GroupH[Tie Breaker]))","v":99},"Spain",{"$f":"COUNTIF(GroupStages[Winner],GroupH[[#This Row],[Country]])","v":0},{"$f":"COUNTIF(GroupStages[Draw1],GroupH[[#This Row],[Country]])+COUNTIF(GroupStages[Draw2],GroupH[[#This Row],[Country]])","v":0},{"$f":"COUNTIF(GroupStages[Loser],GroupH[[#This Row],[Country]])","v":0},{"$f":"SUMIF(GroupStages[TeamA],GroupH[[#This Row],[Country]],GroupStages[ScoreA])+SUMIF(GroupStages[TeamB],GroupH[[#This Row],[Country]],GroupStages[ScoreB])","v":0},{"$f":"SUMIF(GroupStages[TeamA],GroupH[[#This Row],[Country]],GroupStages[ScoreB])+SUMIF(GroupStages[TeamB],GroupH[[#This Row],[Country]],GroupStages[ScoreA])","v":0},{"$f":"GroupH[[#This Row],[GF]]-GroupH[[#This Row],[GA]]","v":0},{"$f":"(GroupH[[#This Row],[W]]*3)+GroupH[[#This Row],[D]]","v":0},{"$f":"GroupH[[#This Row],[Pts]]+(GroupH[[#This Row],[GD]]/100)","v":0}]
[null,null,{"$f":"IF(AND(IF(GroupH[[#This Row],[GD]]=0,TRUE,FALSE),IF(GroupH[[#This Row],[Pts]]=0,TRUE,FALSE)),99,RANK(GroupH[[#This Row],[Tie Breaker]],GroupH[Tie Breaker]))","v":99},"Switzerland",{"$f":"COUNTIF(GroupStages[Winner],GroupH[[#This Row],[Country]])","v":0},{"$f":"COUNTIF(GroupStages[Draw1],GroupH[[#This Row],[Country]])+COUNTIF(GroupStages[Draw2],GroupH[[#This Row],[Country]])","v":0},{"$f":"COUNTIF(GroupStages[Loser],GroupH[[#This Row],[Country]])","v":0},{"$f":"SUMIF(GroupStages[TeamA],GroupH[[#This Row],[Country]],GroupStages[ScoreA])+SUMIF(GroupStages[TeamB],GroupH[[#This Row],[Country]],GroupStages[ScoreB])","v":0},{"$f":"SUMIF(GroupStages[TeamA],GroupH[[#This Row],[Country]],GroupStages[ScoreB])+SUMIF(GroupStages[TeamB],GroupH[[#This Row],[Country]],GroupStages[ScoreA])","v":0},{"$f":"GroupH[[#This Row],[GF]]-GroupH[[#This Row],[GA]]","v":0},{"$f":"(GroupH[[#This Row],[W]]*3)+GroupH[[#This Row],[D]]","v":0},{"$f":"GroupH[[#This Row],[Pts]]+(GroupH[[#This Row],[GD]]/100)","v":0}]
[null,null,{"$f":"IF(AND(IF(GroupH[[#This Row],[GD]]=0,TRUE,FALSE),IF(GroupH[[#This Row],[Pts]]=0,TRUE,FALSE)),99,RANK(GroupH[[#This Row],[Tie Breaker]],GroupH[Tie Breaker]))","v":99},"Honduras",{"$f":"COUNTIF(GroupStages[Winner],GroupH[[#This Row],[Country]])","v":0},{"$f":"COUNTIF(GroupStages[Draw1],GroupH[[#This Row],[Country]])+COUNTIF(GroupStages[Draw2],GroupH[[#This Row],[Country]])","v":0},{"$f":"COUNTIF(GroupStages[Loser],GroupH[[#This Row],[Country]])","v":0},{"$f":"SUMIF(GroupStages[TeamA],GroupH[[#This Row],[Country]],GroupStages[ScoreA])+SUMIF(GroupStages[TeamB],GroupH[[#This Row],[Country]],GroupStages[ScoreB])","v":0},{"$f":"SUMIF(GroupStages[TeamA],GroupH[[#This Row],[Country]],GroupStages[ScoreB])+SUMIF(GroupStages[TeamB],GroupH[[#This Row],[Country]],GroupStages[ScoreA])","v":0},{"$f":"GroupH[[#This Row],[GF]]-GroupH[[#This Row],[GA]]","v":0},{"$f":"(GroupH[[#This Row],[W]]*3)+GroupH[[#This Row],[D]]","v":0},{"$f":"GroupH[[#This Row],[Pts]]+(GroupH[[#This Row],[GD]]/100)","v":0}]
[null,null,{"$f":"IF(AND(IF(GroupH[[#This Row],[GD]]=0,TRUE,FALSE),IF(GroupH[[#This Row],[Pts]]=0,TRUE,FALSE)),99,RANK(GroupH[[#This Row],[Tie Breaker]],GroupH[Tie Breaker]))","v":99},"Chile",{"$f":"COUNTIF(GroupStages[Winner],GroupH[[#This Row],[Country]])","v":0},{"$f":"COUNTIF(GroupStages[Draw1],GroupH[[#This Row],[Country]])+COUNTIF(GroupStages[Draw2],GroupH[[#This Row],[Country]])","v":0},{"$f":"COUNTIF(GroupStages[Loser],GroupH[[#This Row],[Country]])","v":0},{"$f":"SUMIF(GroupStages[TeamA],GroupH[[#This Row],[Country]],GroupStages[ScoreA])+SUMIF(GroupStages[TeamB],GroupH[[#This Row],[Country]],GroupStages[ScoreB])","v":0},{"$f":"SUMIF(GroupStages[TeamA],GroupH[[#This Row],[Country]],GroupStages[ScoreB])+SUMIF(GroupStages[TeamB],GroupH[[#This Row],[Country]],GroupStages[ScoreA])","v":0},{"$f":"GroupH[[#This Row],[GF]]-GroupH[[#This Row],[GA]]","v":0},{"$f":"(GroupH[[#This Row],[W]]*3)+GroupH[[#This Row],[D]]","v":0},{"$f":"GroupH[[#This Row],[Pts]]+(GroupH[[#This Row],[GD]]/100)","v":0}]